{"text_format":"1","workbook":"xlsx","n_sheets":9,"sheets":["記入例","記入シート1日目","記入シート2日目","記入シート3日目","記入シート4日目","記入シート5日目","記入シート6日目","記入シート7日目","集計データ"],"not_rendered":{"charts":4,"images":0,"macros":1,"external_links":0,"defined_names":9,"comments":0,"pivot_tables":0},"unopened":[],"bounds":{"document_bytes":16777216,"sheet_cells":100000,"rows_first":2000,"rows_last":500,"rows_between":2000,"halvings":0,"cell_chars":16384,"cell_head_chars":4096},"cells_cut":0,"cells_raw":0,"read":"whole","date_system":"1900"}

{"sheet":"記入例","index":0,"n_rows":55,"n_cols":27,"rows_kept":55,"cut":false,"hidden":false,"merged":[[2,6,3,6],[2,7,3,7],[2,24,2,26],[3,20,3,23],[3,24,3,26],[2,8,3,9],[2,10,3,13],[2,14,3,15],[2,16,3,19],[2,20,2,23],[54,0,54,1],[28,0,36,0],[37,0,45,0],[46,0,46,1],[48,0,48,1],[49,0,49,1],[50,0,50,1],[0,24,0,26],[1,24,1,26],[51,0,51,1],[52,0,52,1],[53,0,53,1],[24,0,27,0],[4,0,5,1],[4,2,4,25],[4,26,5,26],[6,0,14,0],[15,0,23,0],[2,0,3,1],[2,2,3,2],[2,3,3,3],[2,4,3,4],[2,5,3,5]]}
["平成28年度補正予算 ネット・ゼロ・エネルギー・ハウス（ＺＥＨ）普及加速事業　エネルギー計測装置総括表　記入例",null,null,null,null,null,null,null,null,null,null,null,null,null,null,null,null,null,null,null,null,null,null,null,"【実績報告書添付書類５】"]
[]
["計測日",null,2017,"　年","●","　月","●","　日","申請者名",null,"環境　太郎",null,null,null,"交付決定番号",null,"SII29●●●●-FK-●●●●●-K",null,null,null,"エネファーム等\nコジェネ導入",null,null,null,"エネファーム等コジェネ導入有無\n必ず選択してください"]
[null,null,null,null,null,null,null,null,null,null,null,null,null,null,null,null,null,null,null,null,"蓄電システム導入",null,null,null,"蓄電システム導入有無\n必ず選択してください"]
["　計 測 区 分",null,"時　　間　　帯",null,null,null,null,null,null,null,null,null,null,null,null,null,null,null,null,null,null,null,null,null,null,null,"日計"]
[null,null,0,1,2,3,4,5,6,7,8,9,10,11,12,13,14,15,16,17,18,19,20,21,22,23]
["暖冷房\n(Wh)","リビングAC1",1,1,1,1,1,1,1,1,1,1,1,1,1,1,1,1,1,1,1,1,1,1,1,1,{"$f":"SUM(C7:Z7)","v":24}]
[null,"リビングAC2",1,1,1,1,1,1,1,1,1,1,1,1,1,1,1,1,1,1,1,1,1,1,1,1,24]
[null,"子供室AC",1,1,1,1,1,1,1,1,1,1,1,1,1,1,1,1,1,1,1,1,1,1,1,1,24]
[null,"寝室AC",1,1,1,1,1,1,1,1,1,1,1,1,1,1,1,1,1,1,1,1,1,1,1,1,24]
[null,"和室AC",1,1,1,1,1,1,1,1,1,1,1,1,1,1,1,1,1,1,1,1,1,1,1,1,24]
[null,null,null,null,null,null,null,null,null,null,null,null,null,null,null,null,null,null,null,null,null,null,null,null,null,null,0]
[null,null,null,null,null,null,null,null,null,null,null,null,null,null,null,null,null,null,null,null,null,null,null,null,null,null,0]
[null,null,null,null,null,null,null,null,null,null,null,null,null,null,null,null,null,null,null,null,null,null,null,null,null,null,0]
[null,"区分計",{"$f":"SUM(C7:C14)","v":5},5,5,5,5,5,5,5,5,5,5,5,5,5,5,5,5,5,5,5,5,5,5,5,120]
["換気\n(Wh)","リビング換気1",1,1,1,1,1,1,1,1,1,1,1,1,1,1,1,1,1,1,1,1,1,1,1,1,24]
[null,"リビング換気2",1,1,1,1,1,1,1,1,1,1,1,1,1,1,1,1,1,1,1,1,1,1,1,1,24]
[null,"子供室換気",1,1,1,1,1,1,1,1,1,1,1,1,1,1,1,1,1,1,1,1,1,1,1,1,24]
[null,"寝室換気",1,1,1,1,1,1,1,1,1,1,1,1,1,1,1,1,1,1,1,1,1,1,1,1,24]
[null,"和室換気",1,1,1,1,1,1,1,1,1,1,1,1,1,1,1,1,1,1,1,1,1,1,1,1,24]
[null,null,null,null,null,null,null,null,null,null,null,null,null,null,null,null,null,null,null,null,null,null,null,null,null,null,0]
[null,null,null,null,null,null,null,null,null,null,null,null,null,null,null,null,null,null,null,null,null,null,null,null,null,null,0]
[null,null,null,null,null,null,null,null,null,null,null,null,null,null,null,null,null,null,null,null,null,null,null,null,null,null,0]
[null,"区分計",{"$f":"SUM(C16:C23)","v":5},5,5,5,5,5,5,5,5,5,5,5,5,5,5,5,5,5,5,5,5,5,5,5,{"$f":"SUM(C24:Z24)","v":120}]
["給湯\n(Wh)","エコキュート",1,1,1,1,1,1,1,1,1,1,1,1,1,1,1,1,1,1,1,1,1,1,1,1,{"$f":"SUM(C25:Z25)","v":24}]
[null,null,null,null,null,null,null,null,null,null,null,null,null,null,null,null,null,null,null,null,null,null,null,null,null,null,0]
[null,null,null,null,null,null,null,null,null,null,null,null,null,null,null,null,null,null,null,null,null,null,null,null,null,null,0]
[null,"区分計",{"$f":"SUM(C25:C27)","v":1},1,1,1,1,1,1,1,1,1,1,1,1,1,{"$f":"SUM(Q25:Q27)","v":1},1,1,1,1,1,1,1,1,1,24]
["照明\n(Wh)","リビング1",1,1,1,1,1,1,1,1,1,1,1,1,1,1,1,1,1,1,1,1,1,1,1,1,24]
[null,"リビング2",1,1,1,1,1,1,1,1,1,1,1,1,1,1,1,1,1,1,1,1,1,1,1,1,24]
[null,"子供室",1,1,1,1,1,1,1,1,1,1,1,1,1,1,1,1,1,1,1,1,1,1,1,1,24]
[null,"寝室",1,1,1,1,1,1,1,1,1,1,1,1,1,1,1,1,1,1,1,1,1,1,1,1,24]
[null,"和室",1,1,1,1,1,1,1,1,1,1,1,1,1,1,1,1,1,1,1,1,1,1,1,1,24]
[null,null,null,null,null,null,null,null,null,null,null,null,null,null,null,null,null,null,null,null,null,null,null,null,null,null,0]
[null,null,null,null,null,null,null,null,null,null,null,null,null,null,null,null,null,null,null,null,null,null,null,null,null,null,0]
[null,null,null,null,null,null,null,null,null,null,null,null,null,null,null,null,null,null,null,null,null,null,null,null,null,null,0]
[null,"区分計",{"$f":"SUM(C29:C36)","v":5},5,5,5,5,5,5,5,5,5,5,5,5,5,5,5,5,5,5,5,5,5,5,5,120]
["その他\n(Wh)","冷蔵庫",1,1,1,1,1,1,1,1,1,1,1,1,1,1,1,1,1,1,1,1,1,1,1,1,24]
[null,"キッチン1",1,1,1,1,1,1,1,1,1,1,1,1,1,1,1,1,1,1,1,1,1,1,1,1,24]
[null,"キッチン2",1,1,1,1,1,1,1,1,1,1,1,1,1,1,1,1,1,1,1,1,1,1,1,1,24]
[null,"1階コンセント",1,1,1,1,1,1,1,1,1,1,1,1,1,1,1,1,1,1,1,1,1,1,1,1,24]
[null,"2階コンセント",1,1,1,1,1,1,1,1,1,1,1,1,1,1,1,1,1,1,1,1,1,1,1,1,24]
[null,"テレビラック",1,1,1,1,1,1,1,1,1,1,1,1,1,1,1,1,1,1,1,1,1,1,1,1,24]
[null,null,null,null,null,null,null,null,null,null,null,null,null,null,null,null,null,null,null,null,null,null,null,null,null,null,0]
[null,null,null,null,null,null,null,null,null,null,null,null,null,null,null,null,null,null,null,null,null,null,null,null,null,null,0]
[null,"区分計",{"$f":"SUM(C38:C45)","v":6},6,6,6,6,6,6,6,6,6,6,6,6,6,6,6,6,6,6,6,6,6,6,6,144]
["電力使用量の合計",null,{"$f":"C15+C24+C28+C37+C46","v":22},{"$f":"D15+D24+D28+D37+D46","v":22},22,22,22,22,22,22,22,22,22,22,22,22,22,22,22,22,22,22,22,22,22,22,528]
[]
["太陽光発電\n発電量(Wh)",null,1,1,1,1,1,1,1,1,1,1,1,1,1,1,1,1,1,1,1,1,1,1,1,1,{"$f":"SUM(C49:Z49)","v":24}]
["太陽光発電\n売電量(Wh)",null,1,1,1,1,1,1,1,1,1,1,1,1,1,1,1,1,1,1,1,1,1,1,1,1,24]
["太陽光発電\n自家消費電力使用量\n(Wh)",null,1,1,1,1,1,1,1,1,1,1,1,1,1,1,1,1,1,1,1,1,1,1,1,1,24]
["エネファーム等\nコジェネ発電量（Wh）",null,1,1,1,1,1,1,1,1,1,1,1,1,1,1,1,1,1,1,1,1,1,1,1,1,24]
["蓄電システム\n充電力量(Wh)",null,1,1,1,1,1,1,1,1,1,1,1,1,1,1,1,1,1,1,1,1,1,1,1,1,24]
["蓄電システム\n放電力量(Wh)",null,1,1,1,1,1,1,1,1,1,1,1,1,1,1,1,1,1,1,1,1,1,1,1,1,24]
["買電量(Wh)",null,1,1,1,1,1,1,1,1,1,1,1,1,1,1,1,1,1,1,1,1,1,1,1,1,24]

{"sheet":"記入シート1日目","index":1,"n_rows":55,"n_cols":27,"rows_kept":55,"cut":false,"hidden":false,"merged":[[2,0,3,1],[2,3,3,3],[2,2,3,2],[2,24,2,26],[3,24,3,26],[2,4,3,4],[2,5,3,5],[2,6,3,6],[2,7,3,7],[2,8,3,9],[15,0,23,0],[4,0,5,1],[4,2,4,25],[4,26,5,26],[6,0,14,0],[54,0,54,1],[24,0,27,0],[28,0,36,0],[37,0,45,0],[46,0,46,1],[48,0,48,1],[49,0,49,1],[53,0,53,1],[52,0,52,1],[51,0,51,1],[50,0,50,1],[0,24,0,26],[2,14,3,15],[2,16,3,19],[2,10,3,13],[2,20,2,23],[3,20,3,23],[1,24,1,26]]}
["平成28年度補正予算 ネット・ゼロ・エネルギー・ハウス（ＺＥＨ）普及加速事業　エネルギー計測装置総括表（１／８）",null,null,null,null,null,null,null,null,null,null,null,null,null,null,null,null,null,null,null,null,null,null,null,"【実績報告書添付書類５】"]
[]
["計測日",null,null,"　年",null,"　月",null,"　日","申請者名",null,null,null,null,null,"交付決定番号",null,null,null,null,null,"エネファーム等\nコジェネ導入",null,null,null,"導入なし"]
[null,null,null,null,null,null,null,null,null,null,null,null,null,null,null,null,null,null,null,null,"蓄電システム導入",null,null,null,"導入なし"]
["　計 測 区 分",null,"時　　間　　帯",null,null,null,null,null,null,null,null,null,null,null,null,null,null,null,null,null,null,null,null,null,null,null,"日計"]
[null,null,0,1,2,3,4,5,6,7,8,9,10,11,12,13,14,15,16,17,18,19,20,21,22,23]
["暖冷房\n(Wh)",null,null,null,null,null,null,null,null,null,null,null,null,null,null,null,null,null,null,null,null,null,null,null,null,null,{"$f":"SUM(C7:Z7)","v":0}]
[null,null,null,null,null,null,null,null,null,null,null,null,null,null,null,null,null,null,null,null,null,null,null,null,null,null,0]
[null,null,null,null,null,null,null,null,null,null,null,null,null,null,null,null,null,null,null,null,null,null,null,null,null,null,0]
[null,null,null,null,null,null,null,null,null,null,null,null,null,null,null,null,null,null,null,null,null,null,null,null,null,null,0]
[null,null,null,null,null,null,null,null,null,null,null,null,null,null,null,null,null,null,null,null,null,null,null,null,null,null,0]
[null,null,null,null,null,null,null,null,null,null,null,null,null,null,null,null,null,null,null,null,null,null,null,null,null,null,0]
[null,null,null,null,null,null,null,null,null,null,null,null,null,null,null,null,null,null,null,null,null,null,null,null,null,null,0]
[null,null,null,null,null,null,null,null,null,null,null,null,null,null,null,null,null,null,null,null,null,null,null,null,null,null,0]
[null,"区分計",{"$f":"SUM(C7:C14)","v":0},0,{"$f":"SUM(E7:E14)","v":0},0,0,0,0,0,0,0,0,0,0,0,0,0,0,0,0,0,0,0,0,0,{"$f":"SUM(C15:Z15)","v":0}]
["換気\n(Wh)",null,null,null,null,null,null,null,null,null,null,null,null,null,null,null,null,null,null,null,null,null,null,null,null,null,{"$f":"SUM(C16:Z16)","v":0}]
[null,null,null,null,null,null,null,null,null,null,null,null,null,null,null,null,null,null,null,null,null,null,null,null,null,null,0]
[null,null,null,null,null,null,null,null,null,null,null,null,null,null,null,null,null,null,null,null,null,null,null,null,null,null,0]
[null,null,null,null,null,null,null,null,null,null,null,null,null,null,null,null,null,null,null,null,null,null,null,null,null,null,0]
[null,null,null,null,null,null,null,null,null,null,null,null,null,null,null,null,null,null,null,null,null,null,null,null,null,null,0]
[null,null,null,null,null,null,null,null,null,null,null,null,null,null,null,null,null,null,null,null,null,null,null,null,null,null,0]
[null,null,null,null,null,null,null,null,null,null,null,null,null,null,null,null,null,null,null,null,null,null,null,null,null,null,0]
[null,null,null,null,null,null,null,null,null,null,null,null,null,null,null,null,null,null,null,null,null,null,null,null,null,null,0]
[null,"区分計",{"$f":"SUM(C16:C23)","v":0},0,{"$f":"SUM(E16:E23)","v":0},0,0,0,0,0,0,0,0,0,0,0,0,0,0,0,0,0,0,0,0,0,{"$f":"SUM(C24:Z24)","v":0}]
["給湯\n(Wh)",null,null,null,null,null,null,null,null,null,null,null,null,null,null,null,null,null,null,null,null,null,null,null,null,null,{"$f":"SUM(C25:Z25)","v":0}]
[null,null,null,null,null,null,null,null,null,null,null,null,null,null,null,null,null,null,null,null,null,null,null,null,null,null,{"$f":"SUM(C26:Z26)","v":0}]
[null,null,null,null,null,null,null,null,null,null,null,null,null,null,null,null,null,null,null,null,null,null,null,null,null,null,0]
[null,"区分計",{"$f":"SUM(C25:C27)","v":0},0,0,0,0,0,0,0,0,0,0,0,0,0,{"$f":"SUM(Q25:Q27)","v":0},0,0,0,0,0,0,0,0,0,{"$f":"SUM(C28:Z28)","v":0}]
["照明\n(Wh)",null,null,null,null,null,null,null,null,null,null,null,null,null,null,null,null,null,null,null,null,null,null,null,null,null,{"$f":"SUM(C29:Z29)","v":0}]
[null,null,null,null,null,null,null,null,null,null,null,null,null,null,null,null,null,null,null,null,null,null,null,null,null,null,0]
[null,null,null,null,null,null,null,null,null,null,null,null,null,null,null,null,null,null,null,null,null,null,null,null,null,null,0]
[null,null,null,null,null,null,null,null,null,null,null,null,null,null,null,null,null,null,null,null,null,null,null,null,null,null,0]
[null,null,null,null,null,null,null,null,null,null,null,null,null,null,null,null,null,null,null,null,null,null,null,null,null,null,0]
[null,null,null,null,null,null,null,null,null,null,null,null,null,null,null,null,null,null,null,null,null,null,null,null,null,null,0]
[null,null,null,null,null,null,null,null,null,null,null,null,null,null,null,null,null,null,null,null,null,null,null,null,null,null,0]
[null,null,null,null,null,null,null,null,null,null,null,null,null,null,null,null,null,null,null,null,null,null,null,null,null,null,0]
[null,"区分計",{"$f":"SUM(C29:C36)","v":0},0,{"$f":"SUM(E29:E36)","v":0},0,0,0,0,0,0,0,0,0,0,0,0,0,0,0,0,0,0,0,0,0,{"$f":"SUM(C37:Z37)","v":0}]
["その他\n(Wh)",null,null,null,null,null,null,null,null,null,null,null,null,null,null,null,null,null,null,null,null,null,null,null,null,null,0]
[null,null,null,null,null,null,null,null,null,null,null,null,null,null,null,null,null,null,null,null,null,null,null,null,null,null,0]
[null,null,null,null,null,null,null,null,null,null,null,null,null,null,null,null,null,null,null,null,null,null,null,null,null,null,0]
[null,null,null,null,null,null,null,null,null,null,null,null,null,null,null,null,null,null,null,null,null,null,null,null,null,null,0]
[null,null,null,null,null,null,null,null,null,null,null,null,null,null,null,null,null,null,null,null,null,null,null,null,null,null,0]
[null,null,null,null,null,null,null,null,null,null,null,null,null,null,null,null,null,null,null,null,null,null,null,null,null,null,0]
[null,null,null,null,null,null,null,null,null,null,null,null,null,null,null,null,null,null,null,null,null,null,null,null,null,null,0]
[null,null,null,null,null,null,null,null,null,null,null,null,null,null,null,null,null,null,null,null,null,null,null,null,null,null,0]
[null,"区分計",{"$f":"SUM(C38:C45)","v":0},{"$f":"SUM(D38:D45)","v":0},0,0,0,0,0,0,0,0,0,0,0,0,0,0,0,0,0,0,0,0,0,0,{"$f":"SUM(C46:Z46)","v":0}]
["電力使用量の合計",null,{"$f":"C15+C24+C28+C37+C46","v":0},{"$f":"D15+D24+D28+D37+D46","v":0},0,0,0,0,0,0,0,0,0,0,0,0,0,0,0,0,0,0,0,0,0,{"$f":"Z15+Z24+Z28+Z37+Z46","v":0},{"$f":"AA15+AA24+AA28+AA37+AA46","v":0}]
[]
["太陽光発電\n発電量(Wh)",null,null,null,null,null,null,null,null,null,null,null,null,null,null,null,null,null,null,null,null,null,null,null,null,null,{"$f":"SUM(C49:Z49)","v":0}]
["太陽光発電\n売電量(Wh)",null,null,null,null,null,null,null,null,null,null,null,null,null,null,null,null,null,null,null,null,null,null,null,null,null,0]
["太陽光発電\n自家消費電力使用量\n(Wh)",null,null,null,null,null,null,null,null,null,null,null,null,null,null,null,null,null,null,null,null,null,null,null,null,null,0]
["エネファーム等\nコジェネ発電量（Wh）",null,null,null,null,null,null,null,null,null,null,null,null,null,null,null,null,null,null,null,null,null,null,null,null,null,0]
["蓄電システム\n充電力量(Wh)",null,null,null,null,null,null,null,null,null,null,null,null,null,null,null,null,null,null,null,null,null,null,null,null,null,0]
["蓄電システム\n放電力量(Wh)",null,null,null,null,null,null,null,null,null,null,null,null,null,null,null,null,null,null,null,null,null,null,null,null,null,0]
["買電量(Wh)",null,null,null,null,null,null,null,null,null,null,null,null,null,null,null,null,null,null,null,null,null,null,null,null,null,0]

{"sheet":"記入シート2日目","index":2,"n_rows":55,"n_cols":27,"rows_kept":55,"cut":false,"hidden":false,"merged":[[2,20,2,23],[2,24,2,26],[2,6,3,6],[2,7,3,7],[2,8,3,9],[2,10,3,13],[2,14,3,15],[3,20,3,23],[0,24,0,26],[1,24,1,26],[50,0,50,1],[51,0,51,1],[15,0,23,0],[4,0,5,1],[4,2,4,25],[3,24,3,26],[4,26,5,26],[6,0,14,0],[2,0,3,1],[2,2,3,2],[2,3,3,3],[2,4,3,4],[2,5,3,5],[2,16,3,19],[54,0,54,1],[24,0,27,0],[28,0,36,0],[37,0,45,0],[46,0,46,1],[48,0,48,1],[49,0,49,1],[52,0,52,1],[53,0,53,1]]}
["平成28年度補正予算 ネット・ゼロ・エネルギー・ハウス（ＺＥＨ）普及加速事業　エネルギー計測装置総括表（２／８）",null,null,null,null,null,null,null,null,null,null,null,null,null,null,null,null,null,null,null,null,null,null,null,"【実績報告書添付書類５】"]
[]
["計測日",null,null,"　年",null,"　月",null,"　日","申請者名",null,{"$f":"記入シート1日目!K3","v":0},null,null,null,"交付決定番号",null,{"$f":"記入シート1日目!Q3","v":0},null,null,null,"エネファーム等\nコジェネ導入",null,null,null,{"$f":"記入シート1日目!Y3","v":"導入なし"}]
[null,null,null,null,null,null,null,null,null,null,null,null,null,null,null,null,null,null,null,null,"蓄電システム導入",null,null,null,{"$f":"記入シート1日目!Y4","v":"導入なし"}]
["　計 測 区 分",null,"時　　間　　帯",null,null,null,null,null,null,null,null,null,null,null,null,null,null,null,null,null,null,null,null,null,null,null,"日計"]
[null,null,0,1,2,3,4,5,6,7,8,9,10,11,12,13,14,15,16,17,18,19,20,21,22,23]
["暖冷房\n(Wh)",{"$f":"記入シート1日目!B7","v":0},null,null,null,null,null,null,null,null,null,null,null,null,null,null,null,null,null,null,null,null,null,null,null,null,{"$f":"SUM(C7:Z7)","v":0}]
[null,{"$f":"記入シート1日目!B8","v":0},null,null,null,null,null,null,null,null,null,null,null,null,null,null,null,null,null,null,null,null,null,null,null,null,0]
[null,{"$f":"記入シート1日目!B9","v":0},null,null,null,null,null,null,null,null,null,null,null,null,null,null,null,null,null,null,null,null,null,null,null,null,0]
[null,{"$f":"記入シート1日目!B10","v":0},null,null,null,null,null,null,null,null,null,null,null,null,null,null,null,null,null,null,null,null,null,null,null,null,0]
[null,{"$f":"記入シート1日目!B11","v":0},null,null,null,null,null,null,null,null,null,null,null,null,null,null,null,null,null,null,null,null,null,null,null,null,0]
[null,{"$f":"記入シート1日目!B12","v":0},null,null,null,null,null,null,null,null,null,null,null,null,null,null,null,null,null,null,null,null,null,null,null,null,0]
[null,{"$f":"記入シート1日目!B13","v":0},null,null,null,null,null,null,null,null,null,null,null,null,null,null,null,null,null,null,null,null,null,null,null,null,0]
[null,{"$f":"記入シート1日目!B14","v":0},null,null,null,null,null,null,null,null,null,null,null,null,null,null,null,null,null,null,null,null,null,null,null,null,0]
[null,"区分計",{"$f":"SUM(C7:C14)","v":0},0,{"$f":"SUM(E7:E14)","v":0},0,0,0,0,0,0,0,0,0,0,0,0,0,0,0,0,0,0,0,0,0,0]
["換気\n(Wh)",{"$f":"記入シート1日目!B16","v":0},null,null,null,null,null,null,null,null,null,null,null,null,null,null,null,null,null,null,null,null,null,null,null,null,{"$f":"SUM(C16:Z16)","v":0}]
[null,{"$f":"記入シート1日目!B17","v":0},null,null,null,null,null,null,null,null,null,null,null,null,null,null,null,null,null,null,null,null,null,null,null,null,0]
[null,{"$f":"記入シート1日目!B18","v":0},null,null,null,null,null,null,null,null,null,null,null,null,null,null,null,null,null,null,null,null,null,null,null,null,0]
[null,{"$f":"記入シート1日目!B19","v":0},null,null,null,null,null,null,null,null,null,null,null,null,null,null,null,null,null,null,null,null,null,null,null,null,0]
[null,{"$f":"記入シート1日目!B20","v":0},null,null,null,null,null,null,null,null,null,null,null,null,null,null,null,null,null,null,null,null,null,null,null,null,0]
[null,{"$f":"記入シート1日目!B21","v":0},null,null,null,null,null,null,null,null,null,null,null,null,null,null,null,null,null,null,null,null,null,null,null,null,0]
[null,{"$f":"記入シート1日目!B22","v":0},null,null,null,null,null,null,null,null,null,null,null,null,null,null,null,null,null,null,null,null,null,null,null,null,0]
[null,{"$f":"記入シート1日目!B23","v":0},null,null,null,null,null,null,null,null,null,null,null,null,null,null,null,null,null,null,null,null,null,null,null,null,0]
[null,"区分計",{"$f":"SUM(C16:C23)","v":0},{"$f":"SUM(D16:D23)","v":0},{"$f":"SUM(E16:E23)","v":0},0,0,0,0,0,0,0,0,0,0,0,0,0,0,0,0,0,0,0,0,0,{"$f":"SUM(C24:Z24)","v":0}]
["給湯\n(Wh)",{"$f":"記入シート1日目!B25","v":0},null,null,null,null,null,null,null,null,null,null,null,null,null,null,null,null,null,null,null,null,null,null,null,null,0]
[null,{"$f":"記入シート1日目!B26","v":0},null,null,null,null,null,null,null,null,null,null,null,null,null,null,null,null,null,null,null,null,null,null,null,null,0]
[null,{"$f":"記入シート1日目!B27","v":0},null,null,null,null,null,null,null,null,null,null,null,null,null,null,null,null,null,null,null,null,null,null,null,null,0]
[null,"区分計",{"$f":"SUM(C25:C27)","v":0},0,0,0,0,0,0,0,0,0,0,0,0,0,{"$f":"SUM(Q25:Q27)","v":0},0,0,0,0,0,0,0,0,0,0]
["照明\n(Wh)",{"$f":"記入シート1日目!B29","v":0},null,null,null,null,null,null,null,null,null,null,null,null,null,null,null,null,null,null,null,null,null,null,null,null,0]
[null,{"$f":"記入シート1日目!B30","v":0},null,null,null,null,null,null,null,null,null,null,null,null,null,null,null,null,null,null,null,null,null,null,null,null,0]
[null,{"$f":"記入シート1日目!B31","v":0},null,null,null,null,null,null,null,null,null,null,null,null,null,null,null,null,null,null,null,null,null,null,null,null,0]
[null,{"$f":"記入シート1日目!B32","v":0},null,null,null,null,null,null,null,null,null,null,null,null,null,null,null,null,null,null,null,null,null,null,null,null,0]
[null,{"$f":"記入シート1日目!B33","v":0},null,null,null,null,null,null,null,null,null,null,null,null,null,null,null,null,null,null,null,null,null,null,null,null,0]
[null,{"$f":"記入シート1日目!B34","v":0},null,null,null,null,null,null,null,null,null,null,null,null,null,null,null,null,null,null,null,null,null,null,null,null,0]
[null,{"$f":"記入シート1日目!B35","v":0},null,null,null,null,null,null,null,null,null,null,null,null,null,null,null,null,null,null,null,null,null,null,null,null,0]
[null,{"$f":"記入シート1日目!B36","v":0},null,null,null,null,null,null,null,null,null,null,null,null,null,null,null,null,null,null,null,null,null,null,null,null,0]
[null,"区分計",{"$f":"SUM(C29:C36)","v":0},0,{"$f":"SUM(E29:E36)","v":0},0,0,0,0,0,0,0,0,0,0,0,0,0,0,0,0,0,0,0,0,0,0]
["その他\n(Wh)",{"$f":"記入シート1日目!B38","v":0},null,null,null,null,null,null,null,null,null,null,null,null,null,null,null,null,null,null,null,null,null,null,null,null,0]
[null,{"$f":"記入シート1日目!B39","v":0},null,null,null,null,null,null,null,null,null,null,null,null,null,null,null,null,null,null,null,null,null,null,null,null,0]
[null,{"$f":"記入シート1日目!B40","v":0},null,null,null,null,null,null,null,null,null,null,null,null,null,null,null,null,null,null,null,null,null,null,null,null,0]
[null,{"$f":"記入シート1日目!B41","v":0},null,null,null,null,null,null,null,null,null,null,null,null,null,null,null,null,null,null,null,null,null,null,null,null,0]
[null,{"$f":"記入シート1日目!B42","v":0},null,null,null,null,null,null,null,null,null,null,null,null,null,null,null,null,null,null,null,null,null,null,null,null,0]
[null,{"$f":"記入シート1日目!B43","v":0},null,null,null,null,null,null,null,null,null,null,null,null,null,null,null,null,null,null,null,null,null,null,null,null,0]
[null,{"$f":"記入シート1日目!B44","v":0},null,null,null,null,null,null,null,null,null,null,null,null,null,null,null,null,null,null,null,null,null,null,null,null,0]
[null,{"$f":"記入シート1日目!B45","v":0},null,null,null,null,null,null,null,null,null,null,null,null,null,null,null,null,null,null,null,null,null,null,null,null,0]
[null,"区分計",{"$f":"SUM(C38:C45)","v":0},0,{"$f":"SUM(E38:E45)","v":0},0,0,0,0,0,0,0,0,0,0,0,0,0,0,0,0,0,0,0,0,0,0]
["電力使用量の合計",null,{"$f":"C15+C24+C28+C37+C46","v":0},{"$f":"D15+D24+D28+D37+D46","v":0},0,0,0,0,0,0,0,0,0,0,0,0,0,0,0,0,0,0,0,0,0,0,{"$f":"AA15+AA24+AA28+AA37+AA46","v":0}]
[]
["太陽光発電\n発電量(Wh)",null,null,null,null,null,null,null,null,null,null,null,null,null,null,null,null,null,null,null,null,null,null,null,null,null,{"$f":"SUM(C49:Z49)","v":0}]
["太陽光発電\n売電量(Wh)",null,null,null,null,null,null,null,null,null,null,null,null,null,null,null,null,null,null,null,null,null,null,null,null,null,0]
["太陽光発電\n自家消費電力使用量\n(Wh)",null,null,null,null,null,null,null,null,null,null,null,null,null,null,null,null,null,null,null,null,null,null,null,null,null,0]
["エネファーム等\nコジェネ発電量（Wh）",null,null,null,null,null,null,null,null,null,null,null,null,null,null,null,null,null,null,null,null,null,null,null,null,null,0]
["蓄電システム\n充電力量(Wh)",null,null,null,null,null,null,null,null,null,null,null,null,null,null,null,null,null,null,null,null,null,null,null,null,null,0]
["蓄電システム\n放電力量(Wh)",null,null,null,null,null,null,null,null,null,null,null,null,null,null,null,null,null,null,null,null,null,null,null,null,null,0]
["買電量(Wh)",null,null,null,null,null,null,null,null,null,null,null,null,null,null,null,null,null,null,null,null,null,null,null,null,null,0]

{"sheet":"記入シート3日目","index":3,"n_rows":55,"n_cols":27,"rows_kept":55,"cut":false,"hidden":false,"merged":[[0,24,0,26],[1,24,1,26],[2,24,2,26],[3,24,3,26],[15,0,23,0],[2,0,3,1],[6,0,14,0],[2,20,2,23],[3,20,3,23],[4,0,5,1],[4,26,5,26],[2,7,3,7],[2,8,3,9],[2,10,3,13],[2,14,3,15],[2,16,3,19],[54,0,54,1],[24,0,27,0],[28,0,36,0],[37,0,45,0],[46,0,46,1],[48,0,48,1],[49,0,49,1],[51,0,51,1],[52,0,52,1],[53,0,53,1],[50,0,50,1],[4,2,4,25],[2,2,3,2],[2,3,3,3],[2,4,3,4],[2,5,3,5],[2,6,3,6]]}
["平成28年度補正予算 ネット・ゼロ・エネルギー・ハウス（ＺＥＨ）普及加速事業　エネルギー計測装置総括表（３／８）",null,null,null,null,null,null,null,null,null,null,null,null,null,null,null,null,null,null,null,null,null,null,null,"【実績報告書添付書類５】"]
[]
["計測日",null,null,"　年",null,"　月",null,"　日","申請者名",null,{"$f":"記入シート1日目!K3","v":0},null,null,null,"交付決定番号",null,{"$f":"記入シート1日目!Q3","v":0},null,null,null,"エネファーム等\nコジェネ導入",null,null,null,{"$f":"記入シート1日目!Y3","v":"導入なし"}]
[null,null,null,null,null,null,null,null,null,null,null,null,null,null,null,null,null,null,null,null,"蓄電システム導入",null,null,null,{"$f":"記入シート1日目!Y4","v":"導入なし"}]
["　計 測 区 分",null,"時　　間　　帯",null,null,null,null,null,null,null,null,null,null,null,null,null,null,null,null,null,null,null,null,null,null,null,"日計"]
[null,null,0,1,2,3,4,5,6,7,8,9,10,11,12,13,14,15,16,17,18,19,20,21,22,23]
["暖冷房\n(Wh)",{"$f":"記入シート1日目!B7","v":0},null,null,null,null,null,null,null,null,null,null,null,null,null,null,null,null,null,null,null,null,null,null,null,null,{"$f":"SUM(C7:Z7)","v":0}]
[null,{"$f":"記入シート1日目!B8","v":0},null,null,null,null,null,null,null,null,null,null,null,null,null,null,null,null,null,null,null,null,null,null,null,null,0]
[null,{"$f":"記入シート1日目!B9","v":0},null,null,null,null,null,null,null,null,null,null,null,null,null,null,null,null,null,null,null,null,null,null,null,null,0]
[null,{"$f":"記入シート1日目!B10","v":0},null,null,null,null,null,null,null,null,null,null,null,null,null,null,null,null,null,null,null,null,null,null,null,null,0]
[null,{"$f":"記入シート1日目!B11","v":0},null,null,null,null,null,null,null,null,null,null,null,null,null,null,null,null,null,null,null,null,null,null,null,null,0]
[null,{"$f":"記入シート1日目!B12","v":0},null,null,null,null,null,null,null,null,null,null,null,null,null,null,null,null,null,null,null,null,null,null,null,null,0]
[null,{"$f":"記入シート1日目!B13","v":0},null,null,null,null,null,null,null,null,null,null,null,null,null,null,null,null,null,null,null,null,null,null,null,null,0]
[null,{"$f":"記入シート1日目!B14","v":0},null,null,null,null,null,null,null,null,null,null,null,null,null,null,null,null,null,null,null,null,null,null,null,null,0]
[null,"区分計",{"$f":"SUM(C7:C14)","v":0},0,{"$f":"SUM(E7:E14)","v":0},0,0,0,0,0,0,0,0,0,0,0,0,0,0,0,0,0,0,0,0,0,0]
["換気\n(Wh)",{"$f":"記入シート1日目!B16","v":0},null,null,null,null,null,null,null,null,null,null,null,null,null,null,null,null,null,null,null,null,null,null,null,null,0]
[null,{"$f":"記入シート1日目!B17","v":0},null,null,null,null,null,null,null,null,null,null,null,null,null,null,null,null,null,null,null,null,null,null,null,null,0]
[null,{"$f":"記入シート1日目!B18","v":0},null,null,null,null,null,null,null,null,null,null,null,null,null,null,null,null,null,null,null,null,null,null,null,null,0]
[null,{"$f":"記入シート1日目!B19","v":0},null,null,null,null,null,null,null,null,null,null,null,null,null,null,null,null,null,null,null,null,null,null,null,null,0]
[null,{"$f":"記入シート1日目!B20","v":0},null,null,null,null,null,null,null,null,null,null,null,null,null,null,null,null,null,null,null,null,null,null,null,null,0]
[null,{"$f":"記入シート1日目!B21","v":0},null,null,null,null,null,null,null,null,null,null,null,null,null,null,null,null,null,null,null,null,null,null,null,null,0]
[null,{"$f":"記入シート1日目!B22","v":0},null,null,null,null,null,null,null,null,null,null,null,null,null,null,null,null,null,null,null,null,null,null,null,null,0]
[null,{"$f":"記入シート1日目!B23","v":0},null,null,null,null,null,null,null,null,null,null,null,null,null,null,null,null,null,null,null,null,null,null,null,null,0]
[null,"区分計",{"$f":"SUM(C16:C23)","v":0},0,{"$f":"SUM(E16:E23)","v":0},0,0,0,0,0,0,0,0,0,0,0,0,0,0,0,0,0,0,0,0,0,0]
["給湯\n(Wh)",{"$f":"記入シート1日目!B25","v":0},null,null,null,null,null,null,null,null,null,null,null,null,null,null,null,null,null,null,null,null,null,null,null,null,0]
[null,{"$f":"記入シート1日目!B26","v":0},null,null,null,null,null,null,null,null,null,null,null,null,null,null,null,null,null,null,null,null,null,null,null,null,0]
[null,{"$f":"記入シート1日目!B27","v":0},null,null,null,null,null,null,null,null,null,null,null,null,null,null,null,null,null,null,null,null,null,null,null,null,0]
[null,"区分計",{"$f":"SUM(C25:C27)","v":0},0,0,0,0,0,0,0,0,0,0,0,0,0,{"$f":"SUM(Q25:Q27)","v":0},0,0,0,0,0,0,0,0,0,0]
["照明\n(Wh)",{"$f":"記入シート1日目!B29","v":0},null,null,null,null,null,null,null,null,null,null,null,null,null,null,null,null,null,null,null,null,null,null,null,null,0]
[null,{"$f":"記入シート1日目!B30","v":0},null,null,null,null,null,null,null,null,null,null,null,null,null,null,null,null,null,null,null,null,null,null,null,null,0]
[null,{"$f":"記入シート1日目!B31","v":0},null,null,null,null,null,null,null,null,null,null,null,null,null,null,null,null,null,null,null,null,null,null,null,null,0]
[null,{"$f":"記入シート1日目!B32","v":0},null,null,null,null,null,null,null,null,null,null,null,null,null,null,null,null,null,null,null,null,null,null,null,null,0]
[null,{"$f":"記入シート1日目!B33","v":0},null,null,null,null,null,null,null,null,null,null,null,null,null,null,null,null,null,null,null,null,null,null,null,null,0]
[null,{"$f":"記入シート1日目!B34","v":0},null,null,null,null,null,null,null,null,null,null,null,null,null,null,null,null,null,null,null,null,null,null,null,null,0]
[null,{"$f":"記入シート1日目!B35","v":0},null,null,null,null,null,null,null,null,null,null,null,null,null,null,null,null,null,null,null,null,null,null,null,null,0]
[null,{"$f":"記入シート1日目!B36","v":0},null,null,null,null,null,null,null,null,null,null,null,null,null,null,null,null,null,null,null,null,null,null,null,null,0]
[null,"区分計",{"$f":"SUM(C29:C36)","v":0},0,{"$f":"SUM(E29:E36)","v":0},0,0,0,0,0,0,0,0,0,0,0,0,0,0,0,0,0,0,0,0,0,0]
["その他\n(Wh)",{"$f":"記入シート1日目!B38","v":0},null,null,null,null,null,null,null,null,null,null,null,null,null,null,null,null,null,null,null,null,null,null,null,null,0]
[null,{"$f":"記入シート1日目!B39","v":0},null,null,null,null,null,null,null,null,null,null,null,null,null,null,null,null,null,null,null,null,null,null,null,null,0]
[null,{"$f":"記入シート1日目!B40","v":0},null,null,null,null,null,null,null,null,null,null,null,null,null,null,null,null,null,null,null,null,null,null,null,null,0]
[null,{"$f":"記入シート1日目!B41","v":0},null,null,null,null,null,null,null,null,null,null,null,null,null,null,null,null,null,null,null,null,null,null,null,null,0]
[null,{"$f":"記入シート1日目!B42","v":0},null,null,null,null,null,null,null,null,null,null,null,null,null,null,null,null,null,null,null,null,null,null,null,null,0]
[null,{"$f":"記入シート1日目!B43","v":0},null,null,null,null,null,null,null,null,null,null,null,null,null,null,null,null,null,null,null,null,null,null,null,null,0]
[null,{"$f":"記入シート1日目!B44","v":0},null,null,null,null,null,null,null,null,null,null,null,null,null,null,null,null,null,null,null,null,null,null,null,null,0]
[null,{"$f":"記入シート1日目!B45","v":0},null,null,null,null,null,null,null,null,null,null,null,null,null,null,null,null,null,null,null,null,null,null,null,null,0]
[null,"区分計",{"$f":"SUM(C38:C45)","v":0},0,0,{"$f":"SUM(F38:F45)","v":0},0,0,0,0,0,0,0,0,0,0,0,0,0,0,0,0,0,0,0,0,0]
["電力使用量の合計",null,{"$f":"C15+C24+C28+C37+C46","v":0},{"$f":"D15+D24+D28+D37+D46","v":0},0,0,0,0,0,0,0,0,0,0,0,0,0,0,0,0,0,0,0,0,0,0,{"$f":"AA15+AA24+AA28+AA37+AA46","v":0}]
[]
["太陽光発電\n発電量(Wh)",null,null,null,null,null,null,null,null,null,null,null,null,null,null,null,null,null,null,null,null,null,null,null,null,null,{"$f":"SUM(C49:Z49)","v":0}]
["太陽光発電\n売電量(Wh)",null,null,null,null,null,null,null,null,null,null,null,null,null,null,null,null,null,null,null,null,null,null,null,null,null,0]
["太陽光発電\n自家消費電力使用量\n(Wh)",null,null,null,null,null,null,null,null,null,null,null,null,null,null,null,null,null,null,null,null,null,null,null,null,null,0]
["エネファーム等\nコジェネ発電量（Wh）",null,null,null,null,null,null,null,null,null,null,null,null,null,null,null,null,null,null,null,null,null,null,null,null,null,0]
["蓄電システム\n充電力量(Wh)",null,null,null,null,null,null,null,null,null,null,null,null,null,null,null,null,null,null,null,null,null,null,null,null,null,0]
["蓄電システム\n放電力量(Wh)",null,null,null,null,null,null,null,null,null,null,null,null,null,null,null,null,null,null,null,null,null,null,null,null,null,0]
["買電量(Wh)",null,null,null,null,null,null,null,null,null,null,null,null,null,null,null,null,null,null,null,null,null,null,null,null,null,0]

{"sheet":"記入シート4日目","index":4,"n_rows":55,"n_cols":27,"rows_kept":55,"cut":false,"hidden":false,"merged":[[0,24,0,26],[1,24,1,26],[2,24,2,26],[3,24,3,26],[15,0,23,0],[2,0,3,1],[6,0,14,0],[2,20,2,23],[3,20,3,23],[4,0,5,1],[4,26,5,26],[2,7,3,7],[2,8,3,9],[2,10,3,13],[2,14,3,15],[2,16,3,19],[54,0,54,1],[24,0,27,0],[28,0,36,0],[37,0,45,0],[46,0,46,1],[48,0,48,1],[49,0,49,1],[51,0,51,1],[52,0,52,1],[53,0,53,1],[50,0,50,1],[4,2,4,25],[2,2,3,2],[2,3,3,3],[2,4,3,4],[2,5,3,5],[2,6,3,6]]}
["平成28年度補正予算 ネット・ゼロ・エネルギー・ハウス（ＺＥＨ）普及加速事業　エネルギー計測装置総括表（４／８）",null,null,null,null,null,null,null,null,null,null,null,null,null,null,null,null,null,null,null,null,null,null,null,"【実績報告書添付書類５】"]
[]
["計測日",null,null,"　年",null,"　月",null,"　日","申請者名",null,{"$f":"記入シート1日目!K3","v":0},null,null,null,"交付決定番号",null,{"$f":"記入シート1日目!Q3","v":0},null,null,null,"エネファーム等\nコジェネ導入",null,null,null,{"$f":"記入シート1日目!Y3","v":"導入なし"}]
[null,null,null,null,null,null,null,null,null,null,null,null,null,null,null,null,null,null,null,null,"蓄電システム導入",null,null,null,{"$f":"記入シート1日目!Y4","v":"導入なし"}]
["　計 測 区 分",null,"時　　間　　帯",null,null,null,null,null,null,null,null,null,null,null,null,null,null,null,null,null,null,null,null,null,null,null,"日計"]
[null,null,0,1,2,3,4,5,6,7,8,9,10,11,12,13,14,15,16,17,18,19,20,21,22,23]
["暖冷房\n(Wh)",{"$f":"記入シート1日目!B7","v":0},null,null,null,null,null,null,null,null,null,null,null,null,null,null,null,null,null,null,null,null,null,null,null,null,{"$f":"SUM(C7:Z7)","v":0}]
[null,{"$f":"記入シート1日目!B8","v":0},null,null,null,null,null,null,null,null,null,null,null,null,null,null,null,null,null,null,null,null,null,null,null,null,0]
[null,{"$f":"記入シート1日目!B9","v":0},null,null,null,null,null,null,null,null,null,null,null,null,null,null,null,null,null,null,null,null,null,null,null,null,0]
[null,{"$f":"記入シート1日目!B10","v":0},null,null,null,null,null,null,null,null,null,null,null,null,null,null,null,null,null,null,null,null,null,null,null,null,0]
[null,{"$f":"記入シート1日目!B11","v":0},null,null,null,null,null,null,null,null,null,null,null,null,null,null,null,null,null,null,null,null,null,null,null,null,0]
[null,{"$f":"記入シート1日目!B12","v":0},null,null,null,null,null,null,null,null,null,null,null,null,null,null,null,null,null,null,null,null,null,null,null,null,0]
[null,{"$f":"記入シート1日目!B13","v":0},null,null,null,null,null,null,null,null,null,null,null,null,null,null,null,null,null,null,null,null,null,null,null,null,0]
[null,{"$f":"記入シート1日目!B14","v":0},null,null,null,null,null,null,null,null,null,null,null,null,null,null,null,null,null,null,null,null,null,null,null,null,0]
[null,"区分計",{"$f":"SUM(C7:C14)","v":0},0,{"$f":"SUM(E7:E14)","v":0},0,0,0,0,0,0,0,0,0,0,0,0,0,0,0,0,0,0,0,0,0,0]
["換気\n(Wh)",{"$f":"記入シート1日目!B16","v":0},null,null,null,null,null,null,null,null,null,null,null,null,null,null,null,null,null,null,null,null,null,null,null,null,0]
[null,{"$f":"記入シート1日目!B17","v":0},null,null,null,null,null,null,null,null,null,null,null,null,null,null,null,null,null,null,null,null,null,null,null,null,0]
[null,{"$f":"記入シート1日目!B18","v":0},null,null,null,null,null,null,null,null,null,null,null,null,null,null,null,null,null,null,null,null,null,null,null,null,0]
[null,{"$f":"記入シート1日目!B19","v":0},null,null,null,null,null,null,null,null,null,null,null,null,null,null,null,null,null,null,null,null,null,null,null,null,0]
[null,{"$f":"記入シート1日目!B20","v":0},null,null,null,null,null,null,null,null,null,null,null,null,null,null,null,null,null,null,null,null,null,null,null,null,0]
[null,{"$f":"記入シート1日目!B21","v":0},null,null,null,null,null,null,null,null,null,null,null,null,null,null,null,null,null,null,null,null,null,null,null,null,0]
[null,{"$f":"記入シート1日目!B22","v":0},null,null,null,null,null,null,null,null,null,null,null,null,null,null,null,null,null,null,null,null,null,null,null,null,0]
[null,{"$f":"記入シート1日目!B23","v":0},null,null,null,null,null,null,null,null,null,null,null,null,null,null,null,null,null,null,null,null,null,null,null,null,0]
[null,"区分計",{"$f":"SUM(C16:C23)","v":0},0,{"$f":"SUM(E16:E23)","v":0},0,0,0,0,0,0,0,0,0,0,0,0,0,0,0,0,0,0,0,0,0,0]
["給湯\n(Wh)",{"$f":"記入シート1日目!B25","v":0},null,null,null,null,null,null,null,null,null,null,null,null,null,null,null,null,null,null,null,null,null,null,null,null,0]
[null,{"$f":"記入シート1日目!B26","v":0},null,null,null,null,null,null,null,null,null,null,null,null,null,null,null,null,null,null,null,null,null,null,null,null,0]
[null,{"$f":"記入シート1日目!B27","v":0},null,null,null,null,null,null,null,null,null,null,null,null,null,null,null,null,null,null,null,null,null,null,null,null,0]
[null,"区分計",{"$f":"SUM(C25:C27)","v":0},0,0,0,0,0,0,0,0,0,0,0,0,0,{"$f":"SUM(Q25:Q27)","v":0},0,0,0,0,0,0,0,0,0,0]
["照明\n(Wh)",{"$f":"記入シート1日目!B29","v":0},null,null,null,null,null,null,null,null,null,null,null,null,null,null,null,null,null,null,null,null,null,null,null,null,0]
[null,{"$f":"記入シート1日目!B30","v":0},null,null,null,null,null,null,null,null,null,null,null,null,null,null,null,null,null,null,null,null,null,null,null,null,0]
[null,{"$f":"記入シート1日目!B31","v":0},null,null,null,null,null,null,null,null,null,null,null,null,null,null,null,null,null,null,null,null,null,null,null,null,0]
[null,{"$f":"記入シート1日目!B32","v":0},null,null,null,null,null,null,null,null,null,null,null,null,null,null,null,null,null,null,null,null,null,null,null,null,0]
[null,{"$f":"記入シート1日目!B33","v":0},null,null,null,null,null,null,null,null,null,null,null,null,null,null,null,null,null,null,null,null,null,null,null,null,0]
[null,{"$f":"記入シート1日目!B34","v":0},null,null,null,null,null,null,null,null,null,null,null,null,null,null,null,null,null,null,null,null,null,null,null,null,0]
[null,{"$f":"記入シート1日目!B35","v":0},null,null,null,null,null,null,null,null,null,null,null,null,null,null,null,null,null,null,null,null,null,null,null,null,0]
[null,{"$f":"記入シート1日目!B36","v":0},null,null,null,null,null,null,null,null,null,null,null,null,null,null,null,null,null,null,null,null,null,null,null,null,0]
[null,"区分計",{"$f":"SUM(C29:C36)","v":0},0,{"$f":"SUM(E29:E36)","v":0},0,0,0,0,0,0,0,0,0,0,0,0,0,0,0,0,0,0,0,0,0,0]
["その他\n(Wh)",{"$f":"記入シート1日目!B38","v":0},null,null,null,null,null,null,null,null,null,null,null,null,null,null,null,null,null,null,null,null,null,null,null,null,0]
[null,{"$f":"記入シート1日目!B39","v":0},null,null,null,null,null,null,null,null,null,null,null,null,null,null,null,null,null,null,null,null,null,null,null,null,0]
[null,{"$f":"記入シート1日目!B40","v":0},null,null,null,null,null,null,null,null,null,null,null,null,null,null,null,null,null,null,null,null,null,null,null,null,{"$f":"SUM(C40:Z40)","v":0}]
[null,{"$f":"記入シート1日目!B41","v":0},null,null,null,null,null,null,null,null,null,null,null,null,null,null,null,null,null,null,null,null,null,null,null,null,0]
[null,{"$f":"記入シート1日目!B42","v":0},null,null,null,null,null,null,null,null,null,null,null,null,null,null,null,null,null,null,null,null,null,null,null,null,0]
[null,{"$f":"記入シート1日目!B43","v":0},null,null,null,null,null,null,null,null,null,null,null,null,null,null,null,null,null,null,null,null,null,null,null,null,0]
[null,{"$f":"記入シート1日目!B44","v":0},null,null,null,null,null,null,null,null,null,null,null,null,null,null,null,null,null,null,null,null,null,null,null,null,0]
[null,{"$f":"記入シート1日目!B45","v":0},null,null,null,null,null,null,null,null,null,null,null,null,null,null,null,null,null,null,null,null,null,null,null,null,0]
[null,"区分計",{"$f":"SUM(C38:C45)","v":0},0,0,0,0,0,0,0,0,0,0,0,0,0,0,0,0,0,0,0,0,0,0,0,0]
["電力使用量の合計",null,{"$f":"C15+C24+C28+C37+C46","v":0},{"$f":"D15+D24+D28+D37+D46","v":0},0,0,0,0,0,0,0,0,0,0,0,0,0,0,0,0,0,0,0,0,0,0,{"$f":"AA15+AA24+AA28+AA37+AA46","v":0}]
[]
["太陽光発電\n発電量(Wh)",null,null,null,null,null,null,null,null,null,null,null,null,null,null,null,null,null,null,null,null,null,null,null,null,null,{"$f":"SUM(C49:Z49)","v":0}]
["太陽光発電\n売電量(Wh)",null,null,null,null,null,null,null,null,null,null,null,null,null,null,null,null,null,null,null,null,null,null,null,null,null,0]
["太陽光発電\n自家消費電力使用量\n(Wh)",null,null,null,null,null,null,null,null,null,null,null,null,null,null,null,null,null,null,null,null,null,null,null,null,null,0]
["エネファーム等\nコジェネ発電量（Wh）",null,null,null,null,null,null,null,null,null,null,null,null,null,null,null,null,null,null,null,null,null,null,null,null,null,0]
["蓄電システム\n充電力量(Wh)",null,null,null,null,null,null,null,null,null,null,null,null,null,null,null,null,null,null,null,null,null,null,null,null,null,0]
["蓄電システム\n放電力量(Wh)",null,null,null,null,null,null,null,null,null,null,null,null,null,null,null,null,null,null,null,null,null,null,null,null,null,0]
["買電量(Wh)",null,null,null,null,null,null,null,null,null,null,null,null,null,null,null,null,null,null,null,null,null,null,null,null,null,0]

{"sheet":"記入シート5日目","index":5,"n_rows":55,"n_cols":27,"rows_kept":55,"cut":false,"hidden":false,"merged":[[0,24,0,26],[1,24,1,26],[2,24,2,26],[3,24,3,26],[15,0,23,0],[2,0,3,1],[6,0,14,0],[2,20,2,23],[3,20,3,23],[4,0,5,1],[4,26,5,26],[2,7,3,7],[2,8,3,9],[2,10,3,13],[2,14,3,15],[2,16,3,19],[54,0,54,1],[24,0,27,0],[28,0,36,0],[37,0,45,0],[46,0,46,1],[48,0,48,1],[49,0,49,1],[51,0,51,1],[52,0,52,1],[53,0,53,1],[50,0,50,1],[4,2,4,25],[2,2,3,2],[2,3,3,3],[2,4,3,4],[2,5,3,5],[2,6,3,6]]}
["平成28年度補正予算 ネット・ゼロ・エネルギー・ハウス（ＺＥＨ）普及加速事業　エネルギー計測装置総括表（５／８）",null,null,null,null,null,null,null,null,null,null,null,null,null,null,null,null,null,null,null,null,null,null,null,"【実績報告書添付書類５】"]
[]
["計測日",null,null,"　年",null,"　月",null,"　日","申請者名",null,{"$f":"記入シート1日目!K3","v":0},null,null,null,"交付決定番号",null,{"$f":"記入シート1日目!Q3","v":0},null,null,null,"エネファーム等\nコジェネ導入",null,null,null,{"$f":"記入シート1日目!Y3","v":"導入なし"}]
[null,null,null,null,null,null,null,null,null,null,null,null,null,null,null,null,null,null,null,null,"蓄電システム導入",null,null,null,{"$f":"記入シート1日目!Y4","v":"導入なし"}]
["　計 測 区 分",null,"時　　間　　帯",null,null,null,null,null,null,null,null,null,null,null,null,null,null,null,null,null,null,null,null,null,null,null,"日計"]
[null,null,0,1,2,3,4,5,6,7,8,9,10,11,12,13,14,15,16,17,18,19,20,21,22,23]
["暖冷房\n(Wh)",{"$f":"記入シート1日目!B7","v":0},null,null,null,null,null,null,null,null,null,null,null,null,null,null,null,null,null,null,null,null,null,null,null,null,{"$f":"SUM(C7:Z7)","v":0}]
[null,{"$f":"記入シート1日目!B8","v":0},null,null,null,null,null,null,null,null,null,null,null,null,null,null,null,null,null,null,null,null,null,null,null,null,0]
[null,{"$f":"記入シート1日目!B9","v":0},null,null,null,null,null,null,null,null,null,null,null,null,null,null,null,null,null,null,null,null,null,null,null,null,0]
[null,{"$f":"記入シート1日目!B10","v":0},null,null,null,null,null,null,null,null,null,null,null,null,null,null,null,null,null,null,null,null,null,null,null,null,0]
[null,{"$f":"記入シート1日目!B11","v":0},null,null,null,null,null,null,null,null,null,null,null,null,null,null,null,null,null,null,null,null,null,null,null,null,0]
[null,{"$f":"記入シート1日目!B12","v":0},null,null,null,null,null,null,null,null,null,null,null,null,null,null,null,null,null,null,null,null,null,null,null,null,0]
[null,{"$f":"記入シート1日目!B13","v":0},null,null,null,null,null,null,null,null,null,null,null,null,null,null,null,null,null,null,null,null,null,null,null,null,0]
[null,{"$f":"記入シート1日目!B14","v":0},null,null,null,null,null,null,null,null,null,null,null,null,null,null,null,null,null,null,null,null,null,null,null,null,0]
[null,"区分計",{"$f":"SUM(C7:C14)","v":0},0,{"$f":"SUM(E7:E14)","v":0},0,0,0,0,0,0,0,0,0,0,0,0,0,0,0,0,0,0,0,0,0,0]
["換気\n(Wh)",{"$f":"記入シート1日目!B16","v":0},null,null,null,null,null,null,null,null,null,null,null,null,null,null,null,null,null,null,null,null,null,null,null,null,0]
[null,{"$f":"記入シート1日目!B17","v":0},null,null,null,null,null,null,null,null,null,null,null,null,null,null,null,null,null,null,null,null,null,null,null,null,0]
[null,{"$f":"記入シート1日目!B18","v":0},null,null,null,null,null,null,null,null,null,null,null,null,null,null,null,null,null,null,null,null,null,null,null,null,0]
[null,{"$f":"記入シート1日目!B19","v":0},null,null,null,null,null,null,null,null,null,null,null,null,null,null,null,null,null,null,null,null,null,null,null,null,0]
[null,{"$f":"記入シート1日目!B20","v":0},null,null,null,null,null,null,null,null,null,null,null,null,null,null,null,null,null,null,null,null,null,null,null,null,0]
[null,{"$f":"記入シート1日目!B21","v":0},null,null,null,null,null,null,null,null,null,null,null,null,null,null,null,null,null,null,null,null,null,null,null,null,0]
[null,{"$f":"記入シート1日目!B22","v":0},null,null,null,null,null,null,null,null,null,null,null,null,null,null,null,null,null,null,null,null,null,null,null,null,0]
[null,{"$f":"記入シート1日目!B23","v":0},null,null,null,null,null,null,null,null,null,null,null,null,null,null,null,null,null,null,null,null,null,null,null,null,0]
[null,"区分計",{"$f":"SUM(C16:C23)","v":0},0,{"$f":"SUM(E16:E23)","v":0},0,0,0,0,0,0,0,0,0,0,0,0,0,0,0,0,0,0,0,0,0,0]
["給湯\n(Wh)",{"$f":"記入シート1日目!B25","v":0},null,null,null,null,null,null,null,null,null,null,null,null,null,null,null,null,null,null,null,null,null,null,null,null,0]
[null,{"$f":"記入シート1日目!B26","v":0},null,null,null,null,null,null,null,null,null,null,null,null,null,null,null,null,null,null,null,null,null,null,null,null,0]
[null,{"$f":"記入シート1日目!B27","v":0},null,null,null,null,null,null,null,null,null,null,null,null,null,null,null,null,null,null,null,null,null,null,null,null,0]
[null,"区分計",{"$f":"SUM(C25:C27)","v":0},0,0,0,0,0,0,0,0,0,0,0,0,0,{"$f":"SUM(Q25:Q27)","v":0},0,0,0,0,0,0,0,0,0,0]
["照明\n(Wh)",{"$f":"記入シート1日目!B29","v":0},null,null,null,null,null,null,null,null,null,null,null,null,null,null,null,null,null,null,null,null,null,null,null,null,0]
[null,{"$f":"記入シート1日目!B30","v":0},null,null,null,null,null,null,null,null,null,null,null,null,null,null,null,null,null,null,null,null,null,null,null,null,0]
[null,{"$f":"記入シート1日目!B31","v":0},null,null,null,null,null,null,null,null,null,null,null,null,null,null,null,null,null,null,null,null,null,null,null,null,0]
[null,{"$f":"記入シート1日目!B32","v":0},null,null,null,null,null,null,null,null,null,null,null,null,null,null,null,null,null,null,null,null,null,null,null,null,0]
[null,{"$f":"記入シート1日目!B33","v":0},null,null,null,null,null,null,null,null,null,null,null,null,null,null,null,null,null,null,null,null,null,null,null,null,0]
[null,{"$f":"記入シート1日目!B34","v":0},null,null,null,null,null,null,null,null,null,null,null,null,null,null,null,null,null,null,null,null,null,null,null,null,0]
[null,{"$f":"記入シート1日目!B35","v":0},null,null,null,null,null,null,null,null,null,null,null,null,null,null,null,null,null,null,null,null,null,null,null,null,0]
[null,{"$f":"記入シート1日目!B36","v":0},null,null,null,null,null,null,null,null,null,null,null,null,null,null,null,null,null,null,null,null,null,null,null,null,0]
[null,"区分計",{"$f":"SUM(C29:C36)","v":0},0,{"$f":"SUM(E29:E36)","v":0},0,0,0,0,0,0,0,0,0,0,0,0,0,0,0,0,0,0,0,0,0,0]
["その他\n(Wh)",{"$f":"記入シート1日目!B38","v":0},null,null,null,null,null,null,null,null,null,null,null,null,null,null,null,null,null,null,null,null,null,null,null,null,0]
[null,{"$f":"記入シート1日目!B39","v":0},null,null,null,null,null,null,null,null,null,null,null,null,null,null,null,null,null,null,null,null,null,null,null,null,0]
[null,{"$f":"記入シート1日目!B40","v":0},null,null,null,null,null,null,null,null,null,null,null,null,null,null,null,null,null,null,null,null,null,null,null,null,0]
[null,{"$f":"記入シート1日目!B41","v":0},null,null,null,null,null,null,null,null,null,null,null,null,null,null,null,null,null,null,null,null,null,null,null,null,0]
[null,{"$f":"記入シート1日目!B42","v":0},null,null,null,null,null,null,null,null,null,null,null,null,null,null,null,null,null,null,null,null,null,null,null,null,0]
[null,{"$f":"記入シート1日目!B43","v":0},null,null,null,null,null,null,null,null,null,null,null,null,null,null,null,null,null,null,null,null,null,null,null,null,0]
[null,{"$f":"記入シート1日目!B44","v":0},null,null,null,null,null,null,null,null,null,null,null,null,null,null,null,null,null,null,null,null,null,null,null,null,0]
[null,{"$f":"記入シート1日目!B45","v":0},null,null,null,null,null,null,null,null,null,null,null,null,null,null,null,null,null,null,null,null,null,null,null,null,0]
[null,"区分計",{"$f":"SUM(C38:C45)","v":0},0,0,0,0,0,0,0,0,0,0,0,0,0,0,0,0,0,0,0,0,0,0,0,0]
["電力使用量の合計",null,{"$f":"C15+C24+C28+C37+C46","v":0},{"$f":"D15+D24+D28+D37+D46","v":0},0,0,0,0,0,0,0,0,0,0,0,0,0,0,0,0,0,0,0,0,0,0,{"$f":"AA15+AA24+AA28+AA37+AA46","v":0}]
[]
["太陽光発電\n発電量(Wh)",null,null,null,null,null,null,null,null,null,null,null,null,null,null,null,null,null,null,null,null,null,null,null,null,null,{"$f":"SUM(C49:Z49)","v":0}]
["太陽光発電\n売電量(Wh)",null,null,null,null,null,null,null,null,null,null,null,null,null,null,null,null,null,null,null,null,null,null,null,null,null,0]
["太陽光発電\n自家消費電力使用量\n(Wh)",null,null,null,null,null,null,null,null,null,null,null,null,null,null,null,null,null,null,null,null,null,null,null,null,null,0]
["エネファーム等\nコジェネ発電量（Wh）",null,null,null,null,null,null,null,null,null,null,null,null,null,null,null,null,null,null,null,null,null,null,null,null,null,0]
["蓄電システム\n充電力量(Wh)",null,null,null,null,null,null,null,null,null,null,null,null,null,null,null,null,null,null,null,null,null,null,null,null,null,0]
["蓄電システム\n放電力量(Wh)",null,null,null,null,null,null,null,null,null,null,null,null,null,null,null,null,null,null,null,null,null,null,null,null,null,0]
["買電量(Wh)",null,null,null,null,null,null,null,null,null,null,null,null,null,null,null,null,null,null,null,null,null,null,null,null,null,0]

{"sheet":"記入シート6日目","index":6,"n_rows":55,"n_cols":27,"rows_kept":55,"cut":false,"hidden":false,"merged":[[53,0,53,1],[54,0,54,1],[46,0,46,1],[48,0,48,1],[49,0,49,1],[50,0,50,1],[51,0,51,1],[15,0,23,0],[24,0,27,0],[28,0,36,0],[37,0,45,0],[52,0,52,1],[3,24,3,26],[4,0,5,1],[4,2,4,25],[4,26,5,26],[6,0,14,0],[0,24,0,26],[1,24,1,26],[2,0,3,1],[2,2,3,2],[2,3,3,3],[2,4,3,4],[2,5,3,5],[2,6,3,6],[2,7,3,7],[2,8,3,9],[2,10,3,13],[2,14,3,15],[2,16,3,19],[2,20,2,23],[2,24,2,26],[3,20,3,23]]}
["平成28年度補正予算 ネット・ゼロ・エネルギー・ハウス（ＺＥＨ）普及加速事業　エネルギー計測装置総括表（６／８）",null,null,null,null,null,null,null,null,null,null,null,null,null,null,null,null,null,null,null,null,null,null,null,"【実績報告書添付書類５】"]
[]
["計測日",null,null,"　年",null,"　月",null,"　日","申請者名",null,{"$f":"記入シート1日目!K3","v":0},null,null,null,"交付決定番号",null,{"$f":"記入シート1日目!Q3","v":0},null,null,null,"エネファーム等\nコジェネ導入",null,null,null,{"$f":"記入シート1日目!Y3","v":"導入なし"}]
[null,null,null,null,null,null,null,null,null,null,null,null,null,null,null,null,null,null,null,null,"蓄電システム導入",null,null,null,{"$f":"記入シート1日目!Y4","v":"導入なし"}]
["　計 測 区 分",null,"時　　間　　帯",null,null,null,null,null,null,null,null,null,null,null,null,null,null,null,null,null,null,null,null,null,null,null,"日計"]
[null,null,0,1,2,3,4,5,6,7,8,9,10,11,12,13,14,15,16,17,18,19,20,21,22,23]
["暖冷房\n(Wh)",{"$f":"記入シート1日目!B7","v":0},null,null,null,null,null,null,null,null,null,null,null,null,null,null,null,null,null,null,null,null,null,null,null,null,{"$f":"SUM(C7:Z7)","v":0}]
[null,{"$f":"記入シート1日目!B8","v":0},null,null,null,null,null,null,null,null,null,null,null,null,null,null,null,null,null,null,null,null,null,null,null,null,0]
[null,{"$f":"記入シート1日目!B9","v":0},null,null,null,null,null,null,null,null,null,null,null,null,null,null,null,null,null,null,null,null,null,null,null,null,0]
[null,{"$f":"記入シート1日目!B10","v":0},null,null,null,null,null,null,null,null,null,null,null,null,null,null,null,null,null,null,null,null,null,null,null,null,0]
[null,{"$f":"記入シート1日目!B11","v":0},null,null,null,null,null,null,null,null,null,null,null,null,null,null,null,null,null,null,null,null,null,null,null,null,0]
[null,{"$f":"記入シート1日目!B12","v":0},null,null,null,null,null,null,null,null,null,null,null,null,null,null,null,null,null,null,null,null,null,null,null,null,0]
[null,{"$f":"記入シート1日目!B13","v":0},null,null,null,null,null,null,null,null,null,null,null,null,null,null,null,null,null,null,null,null,null,null,null,null,0]
[null,{"$f":"記入シート1日目!B14","v":0},null,null,null,null,null,null,null,null,null,null,null,null,null,null,null,null,null,null,null,null,null,null,null,null,0]
[null,"区分計",{"$f":"SUM(C7:C14)","v":0},0,{"$f":"SUM(E7:E14)","v":0},0,0,0,0,0,0,0,0,0,0,0,0,0,0,0,0,0,0,0,0,0,0]
["換気\n(Wh)",{"$f":"記入シート1日目!B16","v":0},null,null,null,null,null,null,null,null,null,null,null,null,null,null,null,null,null,null,null,null,null,null,null,null,0]
[null,{"$f":"記入シート1日目!B17","v":0},null,null,null,null,null,null,null,null,null,null,null,null,null,null,null,null,null,null,null,null,null,null,null,null,0]
[null,{"$f":"記入シート1日目!B18","v":0},null,null,null,null,null,null,null,null,null,null,null,null,null,null,null,null,null,null,null,null,null,null,null,null,0]
[null,{"$f":"記入シート1日目!B19","v":0},null,null,null,null,null,null,null,null,null,null,null,null,null,null,null,null,null,null,null,null,null,null,null,null,0]
[null,{"$f":"記入シート1日目!B20","v":0},null,null,null,null,null,null,null,null,null,null,null,null,null,null,null,null,null,null,null,null,null,null,null,null,0]
[null,{"$f":"記入シート1日目!B21","v":0},null,null,null,null,null,null,null,null,null,null,null,null,null,null,null,null,null,null,null,null,null,null,null,null,0]
[null,{"$f":"記入シート1日目!B22","v":0},null,null,null,null,null,null,null,null,null,null,null,null,null,null,null,null,null,null,null,null,null,null,null,null,0]
[null,{"$f":"記入シート1日目!B23","v":0},null,null,null,null,null,null,null,null,null,null,null,null,null,null,null,null,null,null,null,null,null,null,null,null,0]
[null,"区分計",{"$f":"SUM(C16:C23)","v":0},0,{"$f":"SUM(E16:E23)","v":0},0,0,0,0,0,0,0,0,0,0,0,0,0,0,0,0,0,0,0,0,0,0]
["給湯\n(Wh)",{"$f":"記入シート1日目!B25","v":0},null,null,null,null,null,null,null,null,null,null,null,null,null,null,null,null,null,null,null,null,null,null,null,null,0]
[null,{"$f":"記入シート1日目!B26","v":0},null,null,null,null,null,null,null,null,null,null,null,null,null,null,null,null,null,null,null,null,null,null,null,null,0]
[null,{"$f":"記入シート1日目!B27","v":0},null,null,null,null,null,null,null,null,null,null,null,null,null,null,null,null,null,null,null,null,null,null,null,null,0]
[null,"区分計",{"$f":"SUM(C25:C27)","v":0},0,0,0,0,0,0,0,0,0,0,0,0,0,{"$f":"SUM(Q25:Q27)","v":0},0,0,0,0,0,0,0,0,0,0]
["照明\n(Wh)",{"$f":"記入シート1日目!B29","v":0},null,null,null,null,null,null,null,null,null,null,null,null,null,null,null,null,null,null,null,null,null,null,null,null,0]
[null,{"$f":"記入シート1日目!B30","v":0},null,null,null,null,null,null,null,null,null,null,null,null,null,null,null,null,null,null,null,null,null,null,null,null,0]
[null,{"$f":"記入シート1日目!B31","v":0},null,null,null,null,null,null,null,null,null,null,null,null,null,null,null,null,null,null,null,null,null,null,null,null,0]
[null,{"$f":"記入シート1日目!B32","v":0},null,null,null,null,null,null,null,null,null,null,null,null,null,null,null,null,null,null,null,null,null,null,null,null,0]
[null,{"$f":"記入シート1日目!B33","v":0},null,null,null,null,null,null,null,null,null,null,null,null,null,null,null,null,null,null,null,null,null,null,null,null,0]
[null,{"$f":"記入シート1日目!B34","v":0},null,null,null,null,null,null,null,null,null,null,null,null,null,null,null,null,null,null,null,null,null,null,null,null,0]
[null,{"$f":"記入シート1日目!B35","v":0},null,null,null,null,null,null,null,null,null,null,null,null,null,null,null,null,null,null,null,null,null,null,null,null,0]
[null,{"$f":"記入シート1日目!B36","v":0},null,null,null,null,null,null,null,null,null,null,null,null,null,null,null,null,null,null,null,null,null,null,null,null,0]
[null,"区分計",{"$f":"SUM(C29:C36)","v":0},0,{"$f":"SUM(E29:E36)","v":0},0,0,0,0,0,0,0,0,0,0,0,0,0,0,0,0,0,0,0,0,0,0]
["その他\n(Wh)",{"$f":"記入シート1日目!B38","v":0},null,null,null,null,null,null,null,null,null,null,null,null,null,null,null,null,null,null,null,null,null,null,null,null,0]
[null,{"$f":"記入シート1日目!B39","v":0},null,null,null,null,null,null,null,null,null,null,null,null,null,null,null,null,null,null,null,null,null,null,null,null,0]
[null,{"$f":"記入シート1日目!B40","v":0},null,null,null,null,null,null,null,null,null,null,null,null,null,null,null,null,null,null,null,null,null,null,null,null,0]
[null,{"$f":"記入シート1日目!B41","v":0},null,null,null,null,null,null,null,null,null,null,null,null,null,null,null,null,null,null,null,null,null,null,null,null,0]
[null,{"$f":"記入シート1日目!B42","v":0},null,null,null,null,null,null,null,null,null,null,null,null,null,null,null,null,null,null,null,null,null,null,null,null,0]
[null,{"$f":"記入シート1日目!B43","v":0},null,null,null,null,null,null,null,null,null,null,null,null,null,null,null,null,null,null,null,null,null,null,null,null,0]
[null,{"$f":"記入シート1日目!B44","v":0},null,null,null,null,null,null,null,null,null,null,null,null,null,null,null,null,null,null,null,null,null,null,null,null,0]
[null,{"$f":"記入シート1日目!B45","v":0},null,null,null,null,null,null,null,null,null,null,null,null,null,null,null,null,null,null,null,null,null,null,null,null,0]
[null,"区分計",{"$f":"SUM(C38:C45)","v":0},0,0,0,0,0,0,0,0,0,0,0,0,0,0,0,0,0,0,0,0,0,0,0,0]
["電力使用量の合計",null,{"$f":"C15+C24+C28+C37+C46","v":0},{"$f":"D15+D24+D28+D37+D46","v":0},0,0,0,0,0,0,0,0,0,0,0,0,0,0,0,0,0,0,0,0,0,0,{"$f":"AA15+AA24+AA28+AA37+AA46","v":0}]
[]
["太陽光発電\n発電量(Wh)",null,null,null,null,null,null,null,null,null,null,null,null,null,null,null,null,null,null,null,null,null,null,null,null,null,{"$f":"SUM(C49:Z49)","v":0}]
["太陽光発電\n売電量(Wh)",null,null,null,null,null,null,null,null,null,null,null,null,null,null,null,null,null,null,null,null,null,null,null,null,null,0]
["太陽光発電\n自家消費電力使用量\n(Wh)",null,null,null,null,null,null,null,null,null,null,null,null,null,null,null,null,null,null,null,null,null,null,null,null,null,0]
["エネファーム等\nコジェネ発電量（Wh）",null,null,null,null,null,null,null,null,null,null,null,null,null,null,null,null,null,null,null,null,null,null,null,null,null,0]
["蓄電システム\n充電力量(Wh)",null,null,null,null,null,null,null,null,null,null,null,null,null,null,null,null,null,null,null,null,null,null,null,null,null,0]
["蓄電システム\n放電力量(Wh)",null,null,null,null,null,null,null,null,null,null,null,null,null,null,null,null,null,null,null,null,null,null,null,null,null,0]
["買電量(Wh)",null,null,null,null,null,null,null,null,null,null,null,null,null,null,null,null,null,null,null,null,null,null,null,null,null,0]

{"sheet":"記入シート7日目","index":7,"n_rows":55,"n_cols":27,"rows_kept":55,"cut":false,"hidden":false,"merged":[[53,0,53,1],[54,0,54,1],[46,0,46,1],[48,0,48,1],[49,0,49,1],[50,0,50,1],[51,0,51,1],[15,0,23,0],[24,0,27,0],[28,0,36,0],[37,0,45,0],[52,0,52,1],[3,24,3,26],[4,0,5,1],[4,2,4,25],[4,26,5,26],[6,0,14,0],[0,24,0,26],[1,24,1,26],[2,0,3,1],[2,2,3,2],[2,3,3,3],[2,4,3,4],[2,5,3,5],[2,6,3,6],[2,7,3,7],[2,8,3,9],[2,10,3,13],[2,14,3,15],[2,16,3,19],[2,20,2,23],[2,24,2,26],[3,20,3,23]]}
["平成28年度補正予算 ネット・ゼロ・エネルギー・ハウス（ＺＥＨ）普及加速事業　エネルギー計測装置総括表（７／８）",null,null,null,null,null,null,null,null,null,null,null,null,null,null,null,null,null,null,null,null,null,null,null,"【実績報告書添付書類５】"]
[]
["計測日",null,null,"　年",null,"　月",null,"　日","申請者名",null,{"$f":"記入シート1日目!K3","v":0},null,null,null,"交付決定番号",null,{"$f":"記入シート1日目!Q3","v":0},null,null,null,"エネファーム等\nコジェネ導入",null,null,null,{"$f":"記入シート1日目!Y3","v":"導入なし"}]
[null,null,null,null,null,null,null,null,null,null,null,null,null,null,null,null,null,null,null,null,"蓄電システム導入",null,null,null,{"$f":"記入シート1日目!Y4","v":"導入なし"}]
["　計 測 区 分",null,"時　　間　　帯",null,null,null,null,null,null,null,null,null,null,null,null,null,null,null,null,null,null,null,null,null,null,null,"日計"]
[null,null,0,1,2,3,4,5,6,7,8,9,10,11,12,13,14,15,16,17,18,19,20,21,22,23]
["暖冷房\n(Wh)",{"$f":"記入シート1日目!B7","v":0},null,null,null,null,null,null,null,null,null,null,null,null,null,null,null,null,null,null,null,null,null,null,null,null,{"$f":"SUM(C7:Z7)","v":0}]
[null,{"$f":"記入シート1日目!B8","v":0},null,null,null,null,null,null,null,null,null,null,null,null,null,null,null,null,null,null,null,null,null,null,null,null,0]
[null,{"$f":"記入シート1日目!B9","v":0},null,null,null,null,null,null,null,null,null,null,null,null,null,null,null,null,null,null,null,null,null,null,null,null,0]
[null,{"$f":"記入シート1日目!B10","v":0},null,null,null,null,null,null,null,null,null,null,null,null,null,null,null,null,null,null,null,null,null,null,null,null,0]
[null,{"$f":"記入シート1日目!B11","v":0},null,null,null,null,null,null,null,null,null,null,null,null,null,null,null,null,null,null,null,null,null,null,null,null,0]
[null,{"$f":"記入シート1日目!B12","v":0},null,null,null,null,null,null,null,null,null,null,null,null,null,null,null,null,null,null,null,null,null,null,null,null,0]
[null,{"$f":"記入シート1日目!B13","v":0},null,null,null,null,null,null,null,null,null,null,null,null,null,null,null,null,null,null,null,null,null,null,null,null,0]
[null,{"$f":"記入シート1日目!B14","v":0},null,null,null,null,null,null,null,null,null,null,null,null,null,null,null,null,null,null,null,null,null,null,null,null,0]
[null,"区分計",{"$f":"SUM(C7:C14)","v":0},0,{"$f":"SUM(E7:E14)","v":0},0,0,0,0,0,0,0,0,0,0,0,0,0,0,0,0,0,0,0,0,0,0]
["換気\n(Wh)",{"$f":"記入シート1日目!B16","v":0},null,null,null,null,null,null,null,null,null,null,null,null,null,null,null,null,null,null,null,null,null,null,null,null,{"$f":"SUM(C16:Z16)","v":0}]
[null,{"$f":"記入シート1日目!B17","v":0},null,null,null,null,null,null,null,null,null,null,null,null,null,null,null,null,null,null,null,null,null,null,null,null,0]
[null,{"$f":"記入シート1日目!B18","v":0},null,null,null,null,null,null,null,null,null,null,null,null,null,null,null,null,null,null,null,null,null,null,null,null,0]
[null,{"$f":"記入シート1日目!B19","v":0},null,null,null,null,null,null,null,null,null,null,null,null,null,null,null,null,null,null,null,null,null,null,null,null,0]
[null,{"$f":"記入シート1日目!B20","v":0},null,null,null,null,null,null,null,null,null,null,null,null,null,null,null,null,null,null,null,null,null,null,null,null,0]
[null,{"$f":"記入シート1日目!B21","v":0},null,null,null,null,null,null,null,null,null,null,null,null,null,null,null,null,null,null,null,null,null,null,null,null,0]
[null,{"$f":"記入シート1日目!B22","v":0},null,null,null,null,null,null,null,null,null,null,null,null,null,null,null,null,null,null,null,null,null,null,null,null,0]
[null,{"$f":"記入シート1日目!B23","v":0},null,null,null,null,null,null,null,null,null,null,null,null,null,null,null,null,null,null,null,null,null,null,null,null,0]
[null,"区分計",{"$f":"SUM(C16:C23)","v":0},0,{"$f":"SUM(E16:E23)","v":0},0,0,0,0,0,0,0,0,0,0,0,0,0,0,0,0,0,0,0,0,0,{"$f":"SUM(C24:Z24)","v":0}]
["給湯\n(Wh)",{"$f":"記入シート1日目!B25","v":0},null,null,null,null,null,null,null,null,null,null,null,null,null,null,null,null,null,null,null,null,null,null,null,null,{"$f":"SUM(C25:Z25)","v":0}]
[null,{"$f":"記入シート1日目!B26","v":0},null,null,null,null,null,null,null,null,null,null,null,null,null,null,null,null,null,null,null,null,null,null,null,null,0]
[null,{"$f":"記入シート1日目!B27","v":0},null,null,null,null,null,null,null,null,null,null,null,null,null,null,null,null,null,null,null,null,null,null,null,null,0]
[null,"区分計",{"$f":"SUM(C25:C27)","v":0},0,0,0,0,0,0,0,0,0,0,0,0,0,{"$f":"SUM(Q25:Q27)","v":0},0,0,0,0,0,0,0,0,0,0]
["照明\n(Wh)",{"$f":"記入シート1日目!B29","v":0},null,null,null,null,null,null,null,null,null,null,null,null,null,null,null,null,null,null,null,null,null,null,null,null,0]
[null,{"$f":"記入シート1日目!B30","v":0},null,null,null,null,null,null,null,null,null,null,null,null,null,null,null,null,null,null,null,null,null,null,null,null,0]
[null,{"$f":"記入シート1日目!B31","v":0},null,null,null,null,null,null,null,null,null,null,null,null,null,null,null,null,null,null,null,null,null,null,null,null,0]
[null,{"$f":"記入シート1日目!B32","v":0},null,null,null,null,null,null,null,null,null,null,null,null,null,null,null,null,null,null,null,null,null,null,null,null,0]
[null,{"$f":"記入シート1日目!B33","v":0},null,null,null,null,null,null,null,null,null,null,null,null,null,null,null,null,null,null,null,null,null,null,null,null,0]
[null,{"$f":"記入シート1日目!B34","v":0},null,null,null,null,null,null,null,null,null,null,null,null,null,null,null,null,null,null,null,null,null,null,null,null,0]
[null,{"$f":"記入シート1日目!B35","v":0},null,null,null,null,null,null,null,null,null,null,null,null,null,null,null,null,null,null,null,null,null,null,null,null,0]
[null,{"$f":"記入シート1日目!B36","v":0},null,null,null,null,null,null,null,null,null,null,null,null,null,null,null,null,null,null,null,null,null,null,null,null,0]
[null,"区分計",{"$f":"SUM(C29:C36)","v":0},0,{"$f":"SUM(E29:E36)","v":0},0,0,0,0,0,0,0,0,0,0,0,0,0,0,0,0,0,0,0,0,0,0]
["その他\n(Wh)",{"$f":"記入シート1日目!B38","v":0},null,null,null,null,null,null,null,null,null,null,null,null,null,null,null,null,null,null,null,null,null,null,null,null,0]
[null,{"$f":"記入シート1日目!B39","v":0},null,null,null,null,null,null,null,null,null,null,null,null,null,null,null,null,null,null,null,null,null,null,null,null,0]
[null,{"$f":"記入シート1日目!B40","v":0},null,null,null,null,null,null,null,null,null,null,null,null,null,null,null,null,null,null,null,null,null,null,null,null,0]
[null,{"$f":"記入シート1日目!B41","v":0},null,null,null,null,null,null,null,null,null,null,null,null,null,null,null,null,null,null,null,null,null,null,null,null,0]
[null,{"$f":"記入シート1日目!B42","v":0},null,null,null,null,null,null,null,null,null,null,null,null,null,null,null,null,null,null,null,null,null,null,null,null,0]
[null,{"$f":"記入シート1日目!B43","v":0},null,null,null,null,null,null,null,null,null,null,null,null,null,null,null,null,null,null,null,null,null,null,null,null,0]
[null,{"$f":"記入シート1日目!B44","v":0},null,null,null,null,null,null,null,null,null,null,null,null,null,null,null,null,null,null,null,null,null,null,null,null,0]
[null,{"$f":"記入シート1日目!B45","v":0},null,null,null,null,null,null,null,null,null,null,null,null,null,null,null,null,null,null,null,null,null,null,null,null,0]
[null,"区分計",{"$f":"SUM(C38:C45)","v":0},0,0,0,0,0,0,0,0,0,0,0,0,0,0,0,0,0,0,0,0,0,0,0,0]
["電力使用量の合計",null,{"$f":"C15+C24+C28+C37+C46","v":0},{"$f":"D15+D24+D28+D37+D46","v":0},0,0,0,0,0,0,0,0,0,0,0,0,0,0,0,0,0,0,0,0,0,0,{"$f":"AA15+AA24+AA28+AA37+AA46","v":0}]
[]
["太陽光発電\n発電量(Wh)",null,null,null,null,null,null,null,null,null,null,null,null,null,null,null,null,null,null,null,null,null,null,null,null,null,{"$f":"SUM(C49:Z49)","v":0}]
["太陽光発電\n売電量(Wh)",null,null,null,null,null,null,null,null,null,null,null,null,null,null,null,null,null,null,null,null,null,null,null,null,null,0]
["太陽光発電\n自家消費電力使用量\n(Wh)",null,null,null,null,null,null,null,null,null,null,null,null,null,null,null,null,null,null,null,null,null,null,null,null,null,0]
["エネファーム等\nコジェネ発電量（Wh）",null,null,null,null,null,null,null,null,null,null,null,null,null,null,null,null,null,null,null,null,null,null,null,null,null,0]
["蓄電システム\n充電力量(Wh)",null,null,null,null,null,null,null,null,null,null,null,null,null,null,null,null,null,null,null,null,null,null,null,null,null,0]
["蓄電システム\n放電力量(Wh)",null,null,null,null,null,null,null,null,null,null,null,null,null,null,null,null,null,null,null,null,null,null,null,null,null,0]
["買電量(Wh)",null,null,null,null,null,null,null,null,null,null,null,null,null,null,null,null,null,null,null,null,null,null,null,null,null,0]

{"sheet":"集計データ","index":8,"n_rows":140,"n_cols":28,"rows_kept":140,"cut":false,"hidden":false,"merged":[[133,0,139,0],[2,3,3,4],[13,12,13,14],[14,12,14,14],[13,1,13,3],[2,5,3,5],[122,0,128,0],[14,1,14,3],[10,1,10,3],[7,12,7,14],[8,12,8,14],[2,10,3,12],[2,13,3,14],[2,1,3,2],[7,1,7,3],[8,1,8,3],[12,12,12,14],[12,1,12,3],[2,15,3,17],[3,20,3,22],[11,12,11,14],[9,12,10,14],[11,1,11,3],[2,6,3,7],[2,8,3,9],[6,12,6,14],[6,1,6,3],[9,1,9,3],[0,21,0,23],[9,15,10,15],[9,16,10,16],[9,17,10,17],[9,18,10,18],[9,21,10,21],[2,20,2,22],[2,18,2,19],[3,18,3,19],[9,19,10,19],[9,20,10,20]]}
["平成28年度補正予算 ネット・ゼロ・エネルギー・ハウス（ＺＥＨ）普及加速事業　エネルギー計測装置総括表（８／８）　　集計データ（自動集計）",null,null,null,null,null,null,null,null,null,null,null,null,null,null,null,null,null,null,null,null,"【実績報告書添付書類５】"]
[]
[null,"集計期間",null,{"$f":"記入シート1日目!C3&記入シート1日目!D3&記入シート1日目!E3&記入シート1日目!F3&記入シート1日目!G3&記入シート1日目!H3","v":"　年　月　日"},null,"～",{"$f":"記入シート7日目!C3&記入シート7日目!D3&記入シート7日目!E3&記入シート7日目!F3&記入シート7日目!G3&記入シート7日目!H3","v":"　年　月　日"},null,"申請者名",null,{"$f":"記入シート1日目!K3","v":0},null,null,"交付決定番号",null,{"$f":"記入シート1日目!Q3","v":0},null,null,"エネファーム等\nコジェネ導入",null,{"$f":"記入シート1日目!Y3","v":"導入なし"}]
[null,null,null,null,null,null,null,null,null,null,null,null,null,null,null,null,null,null,"蓄電システム導入",null,{"$f":"記入シート1日目!Y4","v":"導入なし"}]
[]
[null,"■集計"]
[null,null,null,null,"1日目","2日目","3日目","4日目","5日目","6日目","7日目",null,null,null,null,"1日目","2日目","3日目","4日目","5日目","6日目","7日目"]
[null,"暖冷房(Wh)",null,null,{"$f":"記入シート1日目!$AA15","v":0},{"$f":"記入シート2日目!$AA15","v":0},{"$f":"記入シート3日目!$AA15","v":0},{"$f":"記入シート4日目!$AA15","v":0},{"$f":"記入シート5日目!$AA15","v":0},{"$f":"記入シート6日目!AA15","v":0},{"$f":"記入シート7日目!AA15","v":0},null,"太陽光発電 発電量(Wh)",null,null,{"$f":"記入シート1日目!$AA49","v":0},{"$f":"記入シート2日目!$AA49","v":0},{"$f":"記入シート3日目!$AA49","v":0},{"$f":"記入シート4日目!$AA49","v":0},{"$f":"記入シート5日目!$AA49","v":0},{"$f":"記入シート6日目!AA49","v":0},{"$f":"記入シート7日目!AA49","v":0}]
[null,"換気(Wh)",null,null,{"$f":"記入シート1日目!$AA24","v":0},{"$f":"記入シート2日目!$AA24","v":0},{"$f":"記入シート3日目!$AA24","v":0},{"$f":"記入シート4日目!$AA24","v":0},{"$f":"記入シート5日目!$AA24","v":0},{"$f":"記入シート6日目!AA24","v":0},{"$f":"記入シート7日目!AA24","v":0},null,"太陽光発電 売電量(Wh)",null,null,{"$f":"記入シート1日目!$AA50","v":0},{"$f":"記入シート2日目!$AA50","v":0},{"$f":"記入シート3日目!$AA50","v":0},{"$f":"記入シート4日目!$AA50","v":0},{"$f":"記入シート5日目!$AA50","v":0},{"$f":"記入シート6日目!AA50","v":0},{"$f":"記入シート7日目!AA50","v":0}]
[null,"給湯(Wh)",null,null,{"$f":"記入シート1日目!$AA28","v":0},{"$f":"記入シート2日目!$AA28","v":0},{"$f":"記入シート3日目!$AA28","v":0},{"$f":"記入シート4日目!$AA28","v":0},{"$f":"記入シート5日目!$AA28","v":0},{"$f":"記入シート6日目!AA28","v":0},{"$f":"記入シート7日目!AA28","v":0},null,"太陽光発電\n自家消費電力使用量(Wh)",null,null,{"$f":"記入シート1日目!$AA51","v":0},{"$f":"記入シート2日目!$AA51","v":0},{"$f":"記入シート3日目!$AA51","v":0},{"$f":"記入シート4日目!$AA51","v":0},{"$f":"記入シート5日目!$AA51","v":0},{"$f":"記入シート6日目!AA51","v":0},{"$f":"記入シート7日目!AA51","v":0}]
[null,"照明(Wh)",null,null,{"$f":"記入シート1日目!$AA37","v":0},{"$f":"記入シート2日目!$AA37","v":0},{"$f":"記入シート3日目!$AA37","v":0},{"$f":"記入シート4日目!$AA37","v":0},{"$f":"記入シート5日目!$AA37","v":0},{"$f":"記入シート6日目!AA37","v":0},{"$f":"記入シート7日目!AA37","v":0}]
[null,"その他(Wh)",null,null,{"$f":"記入シート1日目!$AA46","v":0},{"$f":"記入シート2日目!$AA46","v":0},{"$f":"記入シート3日目!$AA46","v":0},{"$f":"記入シート4日目!$AA46","v":0},{"$f":"記入シート5日目!$AA46","v":0},{"$f":"記入シート6日目!AA46","v":0},{"$f":"記入シート7日目!AA46","v":0},null,"コジェネ発電量(Wh)",null,null,{"$f":"記入シート1日目!$AA52","v":0},{"$f":"記入シート2日目!$AA52","v":0},{"$f":"記入シート3日目!$AA52","v":0},{"$f":"記入シート4日目!$AA52","v":0},{"$f":"記入シート5日目!$AA52","v":0},{"$f":"記入シート6日目!AA52","v":0},{"$f":"記入シート7日目!AA52","v":0}]
[null,"電力使用量合計",null,null,{"$f":"SUM(E8:E12)","v":0},{"$f":"SUM(F8:F12)","v":0},0,0,0,0,0,null,"蓄電システム充電力量(Wh)",null,null,{"$f":"記入シート1日目!$AA53","v":0},{"$f":"記入シート2日目!$AA53","v":0},{"$f":"記入シート3日目!$AA53","v":0},{"$f":"記入シート4日目!$AA53","v":0},{"$f":"記入シート5日目!$AA53","v":0},{"$f":"記入シート6日目!AA53","v":0},{"$f":"記入シート7日目!AA53","v":0}]
[null,null,null,null,null,null,null,null,null,null,null,null,"蓄電システム放電力量(Wh)",null,null,{"$f":"記入シート1日目!$AA54","v":0},{"$f":"記入シート2日目!$AA54","v":0},{"$f":"記入シート3日目!$AA54","v":0},{"$f":"記入シート4日目!$AA54","v":0},{"$f":"記入シート5日目!$AA54","v":0},{"$f":"記入シート6日目!AA54","v":0},{"$f":"記入シート7日目!AA54","v":0}]
[null,null,null,null,null,null,null,null,null,null,null,null,"買電量(Wh)",null,null,{"$f":"記入シート1日目!$AA55","v":0},{"$f":"記入シート2日目!$AA55","v":0},{"$f":"記入シート3日目!$AA55","v":0},{"$f":"記入シート4日目!$AA55","v":0},{"$f":"記入シート5日目!$AA55","v":0},{"$f":"記入シート6日目!AA55","v":0},{"$f":"記入シート7日目!AA55","v":0}]
[null,"■各種比較データ"]
[]
[]
[]
[]
[]
[]
[]
[]
[]
[]
[]
[]
[]
[]
[]
[]
[]
[]
[]
[]
[]
[]
[]
[]
[]
[]
[]
[]
[]
[]
[]
[]
[]
[]
[]
[]
[]
[]
[]
[]
[]
[]
[]
[]
[]
[]
[]
[]
[]
[]
[]
[]
[]
[]
[]
[]
[]
[]
[]
[]
[]
[]
[]
[]
[]
[]
[]
[]
[]
[]
[]
[]
[]
[]
[]
[]
[]
[]
[]
[]
[]
[]
[]
[]
[null,"各日の計測区分毎の電力使用量"]
[null,null,"冷暖房","換気","給湯","照明","その他"]
[null,"1日目",{"$f":"記入シート1日目!$AA15","v":0},{"$f":"記入シート1日目!$AA24","v":0},{"$f":"記入シート1日目!$AA28","v":0},{"$f":"記入シート1日目!$AA37","v":0},{"$f":"記入シート1日目!$AA46","v":0}]
[null,"2日目",{"$f":"記入シート2日目!AA15","v":0},{"$f":"記入シート2日目!AA24","v":0},{"$f":"記入シート2日目!AA28","v":0},{"$f":"記入シート2日目!AA37","v":0},{"$f":"記入シート2日目!AA46","v":0}]
[null,"3日目",{"$f":"記入シート3日目!AA15","v":0},{"$f":"記入シート3日目!AA24","v":0},{"$f":"記入シート3日目!AA28","v":0},{"$f":"記入シート3日目!AA37","v":0},{"$f":"記入シート3日目!AA46","v":0}]
[null,"4日目",{"$f":"記入シート4日目!AA15","v":0},{"$f":"記入シート4日目!AA24","v":0},{"$f":"記入シート4日目!AA28","v":0},{"$f":"記入シート4日目!AA37","v":0},{"$f":"記入シート4日目!AA46","v":0}]
[null,"5日目",{"$f":"記入シート5日目!AA15","v":0},{"$f":"記入シート5日目!AA24","v":0},{"$f":"記入シート5日目!AA28","v":0},{"$f":"記入シート5日目!AA37","v":0},{"$f":"記入シート5日目!AA46","v":0}]
[null,"6日目",{"$f":"記入シート6日目!AA15","v":0},{"$f":"記入シート6日目!AA24","v":0},{"$f":"記入シート6日目!AA28","v":0},{"$f":"記入シート6日目!AA37","v":0},{"$f":"記入シート6日目!AA46","v":0}]
[null,"7日目",{"$f":"記入シート7日目!AA15","v":0},{"$f":"記入シート7日目!AA24","v":0},{"$f":"記入シート7日目!AA28","v":0},{"$f":"記入シート7日目!AA37","v":0},{"$f":"記入シート7日目!AA46","v":0}]
[]
[]
[null,"計測項目毎の24時間の電力使用量推移（平均値）"]
[null,null,0.5,0,1,2,3,4,5,6,7,8,9,10,11,12,13,14,15,16,17,18,19,20,21,22,23,24]
[null,"冷暖房",null,{"$f":"SUM(記入シート1日目!C$15,記入シート2日目!C$15,記入シート3日目!C$15,記入シート4日目!C$15,記入シート5日目!C$15,記入シート6日目!C$15,記入シート7日目!C$15)/7","v":0},{"$f":"SUM(記入シート1日目!D$15,記入シート2日目!D$15,記入シート3日目!D$15,記入シート4日目!D$15,記入シート5日目!D$15,記入シート6日目!D$15,記入シート7日目!D$15)/7","v":0},{"$f":"SUM(記入シート1日目!E$15,記入シート2日目!E$15,記入シート3日目!E$15,記入シート4日目!E$15,記入シート5日目!E$15,記入シート6日目!E$15,記入シート7日目!E$15)/7","v":0},{"$f":"SUM(記入シート1日目!F$15,記入シート2日目!F$15,記入シート3日目!F$15,記入シート4日目!F$15,記入シート5日目!F$15,記入シート6日目!F$15,記入シート7日目!F$15)/7","v":0},{"$f":"SUM(記入シート1日目!G$15,記入シート2日目!G$15,記入シート3日目!G$15,記入シート4日目!G$15,記入シート5日目!G$15,記入シート6日目!G$15,記入シート7日目!G$15)/7","v":0},{"$f":"SUM(記入シート1日目!H$15,記入シート2日目!H$15,記入シート3日目!H$15,記入シート4日目!H$15,記入シート5日目!H$15,記入シート6日目!H$15,記入シート7日目!H$15)/7","v":0},{"$f":"SUM(記入シート1日目!I$15,記入シート2日目!I$15,記入シート3日目!I$15,記入シート4日目!I$15,記入シート5日目!I$15,記入シート6日目!I$15,記入シート7日目!I$15)/7","v":0},{"$f":"SUM(記入シート1日目!J$15,記入シート2日目!J$15,記入シート3日目!J$15,記入シート4日目!J$15,記入シート5日目!J$15,記入シート6日目!J$15,記入シート7日目!J$15)/7","v":0},{"$f":"SUM(記入シート1日目!K$15,記入シート2日目!K$15,記入シート3日目!K$15,記入シート4日目!K$15,記入シート5日目!K$15,記入シート6日目!K$15,記入シート7日目!K$15)/7","v":0},{"$f":"SUM(記入シート1日目!L$15,記入シート2日目!L$15,記入シート3日目!L$15,記入シート4日目!L$15,記入シート5日目!L$15,記入シート6日目!L$15,記入シート7日目!L$15)/7","v":0},{"$f":"SUM(記入シート1日目!M$15,記入シート2日目!M$15,記入シート3日目!M$15,記入シート4日目!M$15,記入シート5日目!M$15,記入シート6日目!M$15,記入シート7日目!M$15)/7","v":0},{"$f":"SUM(記入シート1日目!N$15,記入シート2日目!N$15,記入シート3日目!N$15,記入シート4日目!N$15,記入シート5日目!N$15,記入シート6日目!N$15,記入シート7日目!N$15)/7","v":0},{"$f":"SUM(記入シート1日目!O$15,記入シート2日目!O$15,記入シート3日目!O$15,記入シート4日目!O$15,記入シート5日目!O$15,記入シート6日目!O$15,記入シート7日目!O$15)/7","v":0},{"$f":"SUM(記入シート1日目!P$15,記入シート2日目!P$15,記入シート3日目!P$15,記入シート4日目!P$15,記入シート5日目!P$15,記入シート6日目!P$15,記入シート7日目!P$15)/7","v":0},{"$f":"SUM(記入シート1日目!Q$15,記入シート2日目!Q$15,記入シート3日目!Q$15,記入シート4日目!Q$15,記入シート5日目!Q$15,記入シート6日目!Q$15,記入シート7日目!Q$15)/7","v":0},{"$f":"SUM(記入シート1日目!R$15,記入シート2日目!R$15,記入シート3日目!R$15,記入シート4日目!R$15,記入シート5日目!R$15,記入シート6日目!R$15,記入シート7日目!R$15)/7","v":0},{"$f":"SUM(記入シート1日目!S$15,記入シート2日目!S$15,記入シート3日目!S$15,記入シート4日目!S$15,記入シート5日目!S$15,記入シート6日目!S$15,記入シート7日目!S$15)/7","v":0},{"$f":"SUM(記入シート1日目!T$15,記入シート2日目!T$15,記入シート3日目!T$15,記入シート4日目!T$15,記入シート5日目!T$15,記入シート6日目!T$15,記入シート7日目!T$15)/7","v":0},{"$f":"SUM(記入シート1日目!U$15,記入シート2日目!U$15,記入シート3日目!U$15,記入シート4日目!U$15,記入シート5日目!U$15,記入シート6日目!U$15,記入シート7日目!U$15)/7","v":0},{"$f":"SUM(記入シート1日目!V$15,記入シート2日目!V$15,記入シート3日目!V$15,記入シート4日目!V$15,記入シート5日目!V$15,記入シート6日目!V$15,記入シート7日目!V$15)/7","v":0},{"$f":"SUM(記入シート1日目!W$15,記入シート2日目!W$15,記入シート3日目!W$15,記入シート4日目!W$15,記入シート5日目!W$15,記入シート6日目!W$15,記入シート7日目!W$15)/7","v":0},{"$f":"SUM(記入シート1日目!X$15,記入シート2日目!X$15,記入シート3日目!X$15,記入シート4日目!X$15,記入シート5日目!X$15,記入シート6日目!X$15,記入シート7日目!X$15)/7","v":0},{"$f":"SUM(記入シート1日目!Y$15,記入シート2日目!Y$15,記入シート3日目!Y$15,記入シート4日目!Y$15,記入シート5日目!Y$15,記入シート6日目!Y$15,記入シート7日目!Y$15)/7","v":0},{"$f":"SUM(記入シート1日目!Z$15,記入シート2日目!Z$15,記入シート3日目!Z$15,記入シート4日目!Z$15,記入シート5日目!Z$15,記入シート6日目!Z$15,記入シート7日目!Z$15)/7","v":0}]
[null,"換気",null,{"$f":"SUM(記入シート1日目!C$24,記入シート2日目!C$24,記入シート3日目!C$24,記入シート4日目!C$24,記入シート5日目!C$24,記入シート6日目!C$24,記入シート7日目!C$24)/7","v":0},{"$f":"SUM(記入シート1日目!D$24,記入シート2日目!D$24,記入シート3日目!D$24,記入シート4日目!D$24,記入シート5日目!D$24,記入シート6日目!D$24,記入シート7日目!D$24)/7","v":0},{"$f":"SUM(記入シート1日目!E$24,記入シート2日目!E$24,記入シート3日目!E$24,記入シート4日目!E$24,記入シート5日目!E$24,記入シート6日目!E$24,記入シート7日目!E$24)/7","v":0},{"$f":"SUM(記入シート1日目!F$24,記入シート2日目!F$24,記入シート3日目!F$24,記入シート4日目!F$24,記入シート5日目!F$24,記入シート6日目!F$24,記入シート7日目!F$24)/7","v":0},{"$f":"SUM(記入シート1日目!G$24,記入シート2日目!G$24,記入シート3日目!G$24,記入シート4日目!G$24,記入シート5日目!G$24,記入シート6日目!G$24,記入シート7日目!G$24)/7","v":0},{"$f":"SUM(記入シート1日目!H$24,記入シート2日目!H$24,記入シート3日目!H$24,記入シート4日目!H$24,記入シート5日目!H$24,記入シート6日目!H$24,記入シート7日目!H$24)/7","v":0},{"$f":"SUM(記入シート1日目!I$24,記入シート2日目!I$24,記入シート3日目!I$24,記入シート4日目!I$24,記入シート5日目!I$24,記入シート6日目!I$24,記入シート7日目!I$24)/7","v":0},{"$f":"SUM(記入シート1日目!J$24,記入シート2日目!J$24,記入シート3日目!J$24,記入シート4日目!J$24,記入シート5日目!J$24,記入シート6日目!J$24,記入シート7日目!J$24)/7","v":0},{"$f":"SUM(記入シート1日目!K$24,記入シート2日目!K$24,記入シート3日目!K$24,記入シート4日目!K$24,記入シート5日目!K$24,記入シート6日目!K$24,記入シート7日目!K$24)/7","v":0},{"$f":"SUM(記入シート1日目!L$24,記入シート2日目!L$24,記入シート3日目!L$24,記入シート4日目!L$24,記入シート5日目!L$24,記入シート6日目!L$24,記入シート7日目!L$24)/7","v":0},{"$f":"SUM(記入シート1日目!M$24,記入シート2日目!M$24,記入シート3日目!M$24,記入シート4日目!M$24,記入シート5日目!M$24,記入シート6日目!M$24,記入シート7日目!M$24)/7","v":0},{"$f":"SUM(記入シート1日目!N$24,記入シート2日目!N$24,記入シート3日目!N$24,記入シート4日目!N$24,記入シート5日目!N$24,記入シート6日目!N$24,記入シート7日目!N$24)/7","v":0},{"$f":"SUM(記入シート1日目!O$24,記入シート2日目!O$24,記入シート3日目!O$24,記入シート4日目!O$24,記入シート5日目!O$24,記入シート6日目!O$24,記入シート7日目!O$24)/7","v":0},{"$f":"SUM(記入シート1日目!P$24,記入シート2日目!P$24,記入シート3日目!P$24,記入シート4日目!P$24,記入シート5日目!P$24,記入シート6日目!P$24,記入シート7日目!P$24)/7","v":0},{"$f":"SUM(記入シート1日目!Q$24,記入シート2日目!Q$24,記入シート3日目!Q$24,記入シート4日目!Q$24,記入シート5日目!Q$24,記入シート6日目!Q$24,記入シート7日目!Q$24)/7","v":0},{"$f":"SUM(記入シート1日目!R$24,記入シート2日目!R$24,記入シート3日目!R$24,記入シート4日目!R$24,記入シート5日目!R$24,記入シート6日目!R$24,記入シート7日目!R$24)/7","v":0},{"$f":"SUM(記入シート1日目!S$24,記入シート2日目!S$24,記入シート3日目!S$24,記入シート4日目!S$24,記入シート5日目!S$24,記入シート6日目!S$24,記入シート7日目!S$24)/7","v":0},{"$f":"SUM(記入シート1日目!T$24,記入シート2日目!T$24,記入シート3日目!T$24,記入シート4日目!T$24,記入シート5日目!T$24,記入シート6日目!T$24,記入シート7日目!T$24)/7","v":0},{"$f":"SUM(記入シート1日目!U$24,記入シート2日目!U$24,記入シート3日目!U$24,記入シート4日目!U$24,記入シート5日目!U$24,記入シート6日目!U$24,記入シート7日目!U$24)/7","v":0},{"$f":"SUM(記入シート1日目!V$24,記入シート2日目!V$24,記入シート3日目!V$24,記入シート4日目!V$24,記入シート5日目!V$24,記入シート6日目!V$24,記入シート7日目!V$24)/7","v":0},{"$f":"SUM(記入シート1日目!W$24,記入シート2日目!W$24,記入シート3日目!W$24,記入シート4日目!W$24,記入シート5日目!W$24,記入シート6日目!W$24,記入シート7日目!W$24)/7","v":0},{"$f":"SUM(記入シート1日目!X$24,記入シート2日目!X$24,記入シート3日目!X$24,記入シート4日目!X$24,記入シート5日目!X$24,記入シート6日目!X$24,記入シート7日目!X$24)/7","v":0},{"$f":"SUM(記入シート1日目!Y$24,記入シート2日目!Y$24,記入シート3日目!Y$24,記入シート4日目!Y$24,記入シート5日目!Y$24,記入シート6日目!Y$24,記入シート7日目!Y$24)/7","v":0},{"$f":"SUM(記入シート1日目!Z$24,記入シート2日目!Z$24,記入シート3日目!Z$24,記入シート4日目!Z$24,記入シート5日目!Z$24,記入シート6日目!Z$24,記入シート7日目!Z$24)/7","v":0}]
[null,"給湯",null,{"$f":"SUM(記入シート1日目!C$28,記入シート2日目!C$28,記入シート3日目!C$28,記入シート4日目!C$28,記入シート5日目!C$28,記入シート6日目!C$28,記入シート7日目!C$28)/7","v":0},{"$f":"SUM(記入シート1日目!D$28,記入シート2日目!D$28,記入シート3日目!D$28,記入シート4日目!D$28,記入シート5日目!D$28,記入シート6日目!D$28,記入シート7日目!D$28)/7","v":0},{"$f":"SUM(記入シート1日目!E$28,記入シート2日目!E$28,記入シート3日目!E$28,記入シート4日目!E$28,記入シート5日目!E$28,記入シート6日目!E$28,記入シート7日目!E$28)/7","v":0},{"$f":"SUM(記入シート1日目!F$28,記入シート2日目!F$28,記入シート3日目!F$28,記入シート4日目!F$28,記入シート5日目!F$28,記入シート6日目!F$28,記入シート7日目!F$28)/7","v":0},{"$f":"SUM(記入シート1日目!G$28,記入シート2日目!G$28,記入シート3日目!G$28,記入シート4日目!G$28,記入シート5日目!G$28,記入シート6日目!G$28,記入シート7日目!G$28)/7","v":0},{"$f":"SUM(記入シート1日目!H$28,記入シート2日目!H$28,記入シート3日目!H$28,記入シート4日目!H$28,記入シート5日目!H$28,記入シート6日目!H$28,記入シート7日目!H$28)/7","v":0},{"$f":"SUM(記入シート1日目!I$28,記入シート2日目!I$28,記入シート3日目!I$28,記入シート4日目!I$28,記入シート5日目!I$28,記入シート6日目!I$28,記入シート7日目!I$28)/7","v":0},{"$f":"SUM(記入シート1日目!J$28,記入シート2日目!J$28,記入シート3日目!J$28,記入シート4日目!J$28,記入シート5日目!J$28,記入シート6日目!J$28,記入シート7日目!J$28)/7","v":0},{"$f":"SUM(記入シート1日目!K$28,記入シート2日目!K$28,記入シート3日目!K$28,記入シート4日目!K$28,記入シート5日目!K$28,記入シート6日目!K$28,記入シート7日目!K$28)/7","v":0},{"$f":"SUM(記入シート1日目!L$28,記入シート2日目!L$28,記入シート3日目!L$28,記入シート4日目!L$28,記入シート5日目!L$28,記入シート6日目!L$28,記入シート7日目!L$28)/7","v":0},{"$f":"SUM(記入シート1日目!M$28,記入シート2日目!M$28,記入シート3日目!M$28,記入シート4日目!M$28,記入シート5日目!M$28,記入シート6日目!M$28,記入シート7日目!M$28)/7","v":0},{"$f":"SUM(記入シート1日目!N$28,記入シート2日目!N$28,記入シート3日目!N$28,記入シート4日目!N$28,記入シート5日目!N$28,記入シート6日目!N$28,記入シート7日目!N$28)/7","v":0},{"$f":"SUM(記入シート1日目!O$28,記入シート2日目!O$28,記入シート3日目!O$28,記入シート4日目!O$28,記入シート5日目!O$28,記入シート6日目!O$28,記入シート7日目!O$28)/7","v":0},{"$f":"SUM(記入シート1日目!P$28,記入シート2日目!P$28,記入シート3日目!P$28,記入シート4日目!P$28,記入シート5日目!P$28,記入シート6日目!P$28,記入シート7日目!P$28)/7","v":0},{"$f":"SUM(記入シート1日目!Q$28,記入シート2日目!Q$28,記入シート3日目!Q$28,記入シート4日目!Q$28,記入シート5日目!Q$28,記入シート6日目!Q$28,記入シート7日目!Q$28)/7","v":0},{"$f":"SUM(記入シート1日目!R$28,記入シート2日目!R$28,記入シート3日目!R$28,記入シート4日目!R$28,記入シート5日目!R$28,記入シート6日目!R$28,記入シート7日目!R$28)/7","v":0},{"$f":"SUM(記入シート1日目!S$28,記入シート2日目!S$28,記入シート3日目!S$28,記入シート4日目!S$28,記入シート5日目!S$28,記入シート6日目!S$28,記入シート7日目!S$28)/7","v":0},{"$f":"SUM(記入シート1日目!T$28,記入シート2日目!T$28,記入シート3日目!T$28,記入シート4日目!T$28,記入シート5日目!T$28,記入シート6日目!T$28,記入シート7日目!T$28)/7","v":0},{"$f":"SUM(記入シート1日目!U$28,記入シート2日目!U$28,記入シート3日目!U$28,記入シート4日目!U$28,記入シート5日目!U$28,記入シート6日目!U$28,記入シート7日目!U$28)/7","v":0},{"$f":"SUM(記入シート1日目!V$28,記入シート2日目!V$28,記入シート3日目!V$28,記入シート4日目!V$28,記入シート5日目!V$28,記入シート6日目!V$28,記入シート7日目!V$28)/7","v":0},{"$f":"SUM(記入シート1日目!W$28,記入シート2日目!W$28,記入シート3日目!W$28,記入シート4日目!W$28,記入シート5日目!W$28,記入シート6日目!W$28,記入シート7日目!W$28)/7","v":0},{"$f":"SUM(記入シート1日目!X$28,記入シート2日目!X$28,記入シート3日目!X$28,記入シート4日目!X$28,記入シート5日目!X$28,記入シート6日目!X$28,記入シート7日目!X$28)/7","v":0},{"$f":"SUM(記入シート1日目!Y$28,記入シート2日目!Y$28,記入シート3日目!Y$28,記入シート4日目!Y$28,記入シート5日目!Y$28,記入シート6日目!Y$28,記入シート7日目!Y$28)/7","v":0},{"$f":"SUM(記入シート1日目!Z$28,記入シート2日目!Z$28,記入シート3日目!Z$28,記入シート4日目!Z$28,記入シート5日目!Z$28,記入シート6日目!Z$28,記入シート7日目!Z$28)/7","v":0}]
[null,"照明",null,{"$f":"SUM(記入シート1日目!C$37,記入シート2日目!C$37,記入シート3日目!C$37,記入シート4日目!C$37,記入シート5日目!C$37,記入シート6日目!C$37,記入シート7日目!C$37)/7","v":0},{"$f":"SUM(記入シート1日目!D$37,記入シート2日目!D$37,記入シート3日目!D$37,記入シート4日目!D$37,記入シート5日目!D$37,記入シート6日目!D$37,記入シート7日目!D$37)/7","v":0},{"$f":"SUM(記入シート1日目!E$37,記入シート2日目!E$37,記入シート3日目!E$37,記入シート4日目!E$37,記入シート5日目!E$37,記入シート6日目!E$37,記入シート7日目!E$37)/7","v":0},{"$f":"SUM(記入シート1日目!F$37,記入シート2日目!F$37,記入シート3日目!F$37,記入シート4日目!F$37,記入シート5日目!F$37,記入シート6日目!F$37,記入シート7日目!F$37)/7","v":0},{"$f":"SUM(記入シート1日目!G$37,記入シート2日目!G$37,記入シート3日目!G$37,記入シート4日目!G$37,記入シート5日目!G$37,記入シート6日目!G$37,記入シート7日目!G$37)/7","v":0},{"$f":"SUM(記入シート1日目!H$37,記入シート2日目!H$37,記入シート3日目!H$37,記入シート4日目!H$37,記入シート5日目!H$37,記入シート6日目!H$37,記入シート7日目!H$37)/7","v":0},{"$f":"SUM(記入シート1日目!I$37,記入シート2日目!I$37,記入シート3日目!I$37,記入シート4日目!I$37,記入シート5日目!I$37,記入シート6日目!I$37,記入シート7日目!I$37)/7","v":0},{"$f":"SUM(記入シート1日目!J$37,記入シート2日目!J$37,記入シート3日目!J$37,記入シート4日目!J$37,記入シート5日目!J$37,記入シート6日目!J$37,記入シート7日目!J$37)/7","v":0},{"$f":"SUM(記入シート1日目!K$37,記入シート2日目!K$37,記入シート3日目!K$37,記入シート4日目!K$37,記入シート5日目!K$37,記入シート6日目!K$37,記入シート7日目!K$37)/7","v":0},{"$f":"SUM(記入シート1日目!L$37,記入シート2日目!L$37,記入シート3日目!L$37,記入シート4日目!L$37,記入シート5日目!L$37,記入シート6日目!L$37,記入シート7日目!L$37)/7","v":0},{"$f":"SUM(記入シート1日目!M$37,記入シート2日目!M$37,記入シート3日目!M$37,記入シート4日目!M$37,記入シート5日目!M$37,記入シート6日目!M$37,記入シート7日目!M$37)/7","v":0},{"$f":"SUM(記入シート1日目!N$37,記入シート2日目!N$37,記入シート3日目!N$37,記入シート4日目!N$37,記入シート5日目!N$37,記入シート6日目!N$37,記入シート7日目!N$37)/7","v":0},{"$f":"SUM(記入シート1日目!O$37,記入シート2日目!O$37,記入シート3日目!O$37,記入シート4日目!O$37,記入シート5日目!O$37,記入シート6日目!O$37,記入シート7日目!O$37)/7","v":0},{"$f":"SUM(記入シート1日目!P$37,記入シート2日目!P$37,記入シート3日目!P$37,記入シート4日目!P$37,記入シート5日目!P$37,記入シート6日目!P$37,記入シート7日目!P$37)/7","v":0},{"$f":"SUM(記入シート1日目!Q$37,記入シート2日目!Q$37,記入シート3日目!Q$37,記入シート4日目!Q$37,記入シート5日目!Q$37,記入シート6日目!Q$37,記入シート7日目!Q$37)/7","v":0},{"$f":"SUM(記入シート1日目!R$37,記入シート2日目!R$37,記入シート3日目!R$37,記入シート4日目!R$37,記入シート5日目!R$37,記入シート6日目!R$37,記入シート7日目!R$37)/7","v":0},{"$f":"SUM(記入シート1日目!S$37,記入シート2日目!S$37,記入シート3日目!S$37,記入シート4日目!S$37,記入シート5日目!S$37,記入シート6日目!S$37,記入シート7日目!S$37)/7","v":0},{"$f":"SUM(記入シート1日目!T$37,記入シート2日目!T$37,記入シート3日目!T$37,記入シート4日目!T$37,記入シート5日目!T$37,記入シート6日目!T$37,記入シート7日目!T$37)/7","v":0},{"$f":"SUM(記入シート1日目!U$37,記入シート2日目!U$37,記入シート3日目!U$37,記入シート4日目!U$37,記入シート5日目!U$37,記入シート6日目!U$37,記入シート7日目!U$37)/7","v":0},{"$f":"SUM(記入シート1日目!V$37,記入シート2日目!V$37,記入シート3日目!V$37,記入シート4日目!V$37,記入シート5日目!V$37,記入シート6日目!V$37,記入シート7日目!V$37)/7","v":0},{"$f":"SUM(記入シート1日目!W$37,記入シート2日目!W$37,記入シート3日目!W$37,記入シート4日目!W$37,記入シート5日目!W$37,記入シート6日目!W$37,記入シート7日目!W$37)/7","v":0},{"$f":"SUM(記入シート1日目!X$37,記入シート2日目!X$37,記入シート3日目!X$37,記入シート4日目!X$37,記入シート5日目!X$37,記入シート6日目!X$37,記入シート7日目!X$37)/7","v":0},{"$f":"SUM(記入シート1日目!Y$37,記入シート2日目!Y$37,記入シート3日目!Y$37,記入シート4日目!Y$37,記入シート5日目!Y$37,記入シート6日目!Y$37,記入シート7日目!Y$37)/7","v":0},{"$f":"SUM(記入シート1日目!Z$37,記入シート2日目!Z$37,記入シート3日目!Z$37,記入シート4日目!Z$37,記入シート5日目!Z$37,記入シート6日目!Z$37,記入シート7日目!Z$37)/7","v":0}]
[null,"その他",null,{"$f":"SUM(記入シート1日目!C$46,記入シート2日目!C$46,記入シート3日目!C$46,記入シート4日目!C$46,記入シート5日目!C$46,記入シート6日目!C$46,記入シート7日目!C$46)/7","v":0},{"$f":"SUM(記入シート1日目!D$46,記入シート2日目!D$46,記入シート3日目!D$46,記入シート4日目!D$46,記入シート5日目!D$46,記入シート6日目!D$46,記入シート7日目!D$46)/7","v":0},{"$f":"SUM(記入シート1日目!E$46,記入シート2日目!E$46,記入シート3日目!E$46,記入シート4日目!E$46,記入シート5日目!E$46,記入シート6日目!E$46,記入シート7日目!E$46)/7","v":0},{"$f":"SUM(記入シート1日目!F$46,記入シート2日目!F$46,記入シート3日目!F$46,記入シート4日目!F$46,記入シート5日目!F$46,記入シート6日目!F$46,記入シート7日目!F$46)/7","v":0},{"$f":"SUM(記入シート1日目!G$46,記入シート2日目!G$46,記入シート3日目!G$46,記入シート4日目!G$46,記入シート5日目!G$46,記入シート6日目!G$46,記入シート7日目!G$46)/7","v":0},{"$f":"SUM(記入シート1日目!H$46,記入シート2日目!H$46,記入シート3日目!H$46,記入シート4日目!H$46,記入シート5日目!H$46,記入シート6日目!H$46,記入シート7日目!H$46)/7","v":0},{"$f":"SUM(記入シート1日目!I$46,記入シート2日目!I$46,記入シート3日目!I$46,記入シート4日目!I$46,記入シート5日目!I$46,記入シート6日目!I$46,記入シート7日目!I$46)/7","v":0},{"$f":"SUM(記入シート1日目!J$46,記入シート2日目!J$46,記入シート3日目!J$46,記入シート4日目!J$46,記入シート5日目!J$46,記入シート6日目!J$46,記入シート7日目!J$46)/7","v":0},{"$f":"SUM(記入シート1日目!K$46,記入シート2日目!K$46,記入シート3日目!K$46,記入シート4日目!K$46,記入シート5日目!K$46,記入シート6日目!K$46,記入シート7日目!K$46)/7","v":0},{"$f":"SUM(記入シート1日目!L$46,記入シート2日目!L$46,記入シート3日目!L$46,記入シート4日目!L$46,記入シート5日目!L$46,記入シート6日目!L$46,記入シート7日目!L$46)/7","v":0},{"$f":"SUM(記入シート1日目!M$46,記入シート2日目!M$46,記入シート3日目!M$46,記入シート4日目!M$46,記入シート5日目!M$46,記入シート6日目!M$46,記入シート7日目!M$46)/7","v":0},{"$f":"SUM(記入シート1日目!N$46,記入シート2日目!N$46,記入シート3日目!N$46,記入シート4日目!N$46,記入シート5日目!N$46,記入シート6日目!N$46,記入シート7日目!N$46)/7","v":0},{"$f":"SUM(記入シート1日目!O$46,記入シート2日目!O$46,記入シート3日目!O$46,記入シート4日目!O$46,記入シート5日目!O$46,記入シート6日目!O$46,記入シート7日目!O$46)/7","v":0},{"$f":"SUM(記入シート1日目!P$46,記入シート2日目!P$46,記入シート3日目!P$46,記入シート4日目!P$46,記入シート5日目!P$46,記入シート6日目!P$46,記入シート7日目!P$46)/7","v":0},{"$f":"SUM(記入シート1日目!Q$46,記入シート2日目!Q$46,記入シート3日目!Q$46,記入シート4日目!Q$46,記入シート5日目!Q$46,記入シート6日目!Q$46,記入シート7日目!Q$46)/7","v":0},{"$f":"SUM(記入シート1日目!R$46,記入シート2日目!R$46,記入シート3日目!R$46,記入シート4日目!R$46,記入シート5日目!R$46,記入シート6日目!R$46,記入シート7日目!R$46)/7","v":0},{"$f":"SUM(記入シート1日目!S$46,記入シート2日目!S$46,記入シート3日目!S$46,記入シート4日目!S$46,記入シート5日目!S$46,記入シート6日目!S$46,記入シート7日目!S$46)/7","v":0},{"$f":"SUM(記入シート1日目!T$46,記入シート2日目!T$46,記入シート3日目!T$46,記入シート4日目!T$46,記入シート5日目!T$46,記入シート6日目!T$46,記入シート7日目!T$46)/7","v":0},{"$f":"SUM(記入シート1日目!U$46,記入シート2日目!U$46,記入シート3日目!U$46,記入シート4日目!U$46,記入シート5日目!U$46,記入シート6日目!U$46,記入シート7日目!U$46)/7","v":0},{"$f":"SUM(記入シート1日目!V$46,記入シート2日目!V$46,記入シート3日目!V$46,記入シート4日目!V$46,記入シート5日目!V$46,記入シート6日目!V$46,記入シート7日目!V$46)/7","v":0},{"$f":"SUM(記入シート1日目!W$46,記入シート2日目!W$46,記入シート3日目!W$46,記入シート4日目!W$46,記入シート5日目!W$46,記入シート6日目!W$46,記入シート7日目!W$46)/7","v":0},{"$f":"SUM(記入シート1日目!X$46,記入シート2日目!X$46,記入シート3日目!X$46,記入シート4日目!X$46,記入シート5日目!X$46,記入シート6日目!X$46,記入シート7日目!X$46)/7","v":0},{"$f":"SUM(記入シート1日目!Y$46,記入シート2日目!Y$46,記入シート3日目!Y$46,記入シート4日目!Y$46,記入シート5日目!Y$46,記入シート6日目!Y$46,記入シート7日目!Y$46)/7","v":0},{"$f":"SUM(記入シート1日目!Z$46,記入シート2日目!Z$46,記入シート3日目!Z$46,記入シート4日目!Z$46,記入シート5日目!Z$46,記入シート6日目!Z$46,記入シート7日目!Z$46)/7","v":0}]
[]
[]
[null,"各日の電力使用量の時間推移"]
[null,null,0,1,2,3,4,5,6,7,8,9,10,11,12,13,14,15,16,17,18,19,20,21,22,23]
["電力使用量","1日目",{"$f":"SUM(記入シート1日目!C47)","v":0},{"$f":"SUM(記入シート1日目!D47)","v":0},{"$f":"SUM(記入シート1日目!E47)","v":0},{"$f":"SUM(記入シート1日目!F47)","v":0},{"$f":"SUM(記入シート1日目!G47)","v":0},{"$f":"SUM(記入シート1日目!H47)","v":0},{"$f":"SUM(記入シート1日目!I47)","v":0},{"$f":"SUM(記入シート1日目!J47)","v":0},{"$f":"SUM(記入シート1日目!K47)","v":0},{"$f":"SUM(記入シート1日目!L47)","v":0},{"$f":"SUM(記入シート1日目!M47)","v":0},{"$f":"SUM(記入シート1日目!N47)","v":0},{"$f":"SUM(記入シート1日目!O47)","v":0},{"$f":"SUM(記入シート1日目!P47)","v":0},{"$f":"SUM(記入シート1日目!Q47)","v":0},{"$f":"SUM(記入シート1日目!R47)","v":0},{"$f":"SUM(記入シート1日目!S47)","v":0},{"$f":"SUM(記入シート1日目!T47)","v":0},{"$f":"SUM(記入シート1日目!U47)","v":0},{"$f":"SUM(記入シート1日目!V47)","v":0},{"$f":"SUM(記入シート1日目!W47)","v":0},{"$f":"SUM(記入シート1日目!X47)","v":0},{"$f":"SUM(記入シート1日目!Y47)","v":0},{"$f":"SUM(記入シート1日目!Z47)","v":0}]
[null,"2日目",{"$f":"記入シート2日目!C47","v":0},{"$f":"記入シート2日目!D47","v":0},{"$f":"記入シート2日目!E47","v":0},{"$f":"記入シート2日目!F47","v":0},{"$f":"記入シート2日目!G47","v":0},{"$f":"記入シート2日目!H47","v":0},{"$f":"記入シート2日目!I47","v":0},{"$f":"記入シート2日目!J47","v":0},{"$f":"記入シート2日目!K47","v":0},{"$f":"記入シート2日目!L47","v":0},{"$f":"記入シート2日目!M47","v":0},{"$f":"記入シート2日目!N47","v":0},{"$f":"記入シート2日目!O47","v":0},{"$f":"記入シート2日目!P47","v":0},{"$f":"記入シート2日目!Q47","v":0},{"$f":"記入シート2日目!R47","v":0},{"$f":"記入シート2日目!S47","v":0},{"$f":"記入シート2日目!T47","v":0},{"$f":"記入シート2日目!U47","v":0},{"$f":"記入シート2日目!V47","v":0},{"$f":"記入シート2日目!W47","v":0},{"$f":"記入シート2日目!X47","v":0},{"$f":"記入シート2日目!Y47","v":0},{"$f":"記入シート2日目!Z47","v":0}]
[null,"3日目",{"$f":"記入シート3日目!C47","v":0},{"$f":"記入シート3日目!D47","v":0},{"$f":"記入シート3日目!E47","v":0},{"$f":"記入シート3日目!F47","v":0},{"$f":"記入シート3日目!G47","v":0},{"$f":"記入シート3日目!H47","v":0},{"$f":"記入シート3日目!I47","v":0},{"$f":"記入シート3日目!J47","v":0},{"$f":"記入シート3日目!K47","v":0},{"$f":"記入シート3日目!L47","v":0},{"$f":"記入シート3日目!M47","v":0},{"$f":"記入シート3日目!N47","v":0},{"$f":"記入シート3日目!O47","v":0},{"$f":"記入シート3日目!P47","v":0},{"$f":"記入シート3日目!Q47","v":0},{"$f":"記入シート3日目!R47","v":0},{"$f":"記入シート3日目!S47","v":0},{"$f":"記入シート3日目!T47","v":0},{"$f":"記入シート3日目!U47","v":0},{"$f":"記入シート3日目!V47","v":0},{"$f":"記入シート3日目!W47","v":0},{"$f":"記入シート3日目!X47","v":0},{"$f":"記入シート3日目!Y47","v":0},{"$f":"記入シート3日目!Z47","v":0}]
[null,"4日目",{"$f":"記入シート4日目!C47","v":0},{"$f":"記入シート4日目!D47","v":0},{"$f":"記入シート4日目!E47","v":0},{"$f":"記入シート4日目!F47","v":0},{"$f":"記入シート4日目!G47","v":0},{"$f":"記入シート4日目!H47","v":0},{"$f":"記入シート4日目!I47","v":0},{"$f":"記入シート4日目!J47","v":0},{"$f":"記入シート4日目!K47","v":0},{"$f":"記入シート4日目!L47","v":0},{"$f":"記入シート4日目!M47","v":0},{"$f":"記入シート4日目!N47","v":0},{"$f":"記入シート4日目!O47","v":0},{"$f":"記入シート4日目!P47","v":0},{"$f":"記入シート4日目!Q47","v":0},{"$f":"記入シート4日目!R47","v":0},{"$f":"記入シート4日目!S47","v":0},{"$f":"記入シート4日目!T47","v":0},{"$f":"記入シート4日目!U47","v":0},{"$f":"記入シート4日目!V47","v":0},{"$f":"記入シート4日目!W47","v":0},{"$f":"記入シート4日目!X47","v":0},{"$f":"記入シート4日目!Y47","v":0},{"$f":"記入シート4日目!Z47","v":0}]
[null,"5日目",{"$f":"記入シート5日目!C47","v":0},{"$f":"記入シート5日目!D47","v":0},{"$f":"記入シート5日目!E47","v":0},{"$f":"記入シート5日目!F47","v":0},{"$f":"記入シート5日目!G47","v":0},{"$f":"記入シート5日目!H47","v":0},{"$f":"記入シート5日目!I47","v":0},{"$f":"記入シート5日目!J47","v":0},{"$f":"記入シート5日目!K47","v":0},{"$f":"記入シート5日目!L47","v":0},{"$f":"記入シート5日目!M47","v":0},{"$f":"記入シート5日目!N47","v":0},{"$f":"記入シート5日目!O47","v":0},{"$f":"記入シート5日目!P47","v":0},{"$f":"記入シート5日目!Q47","v":0},{"$f":"記入シート5日目!R47","v":0},{"$f":"記入シート5日目!S47","v":0},{"$f":"記入シート5日目!T47","v":0},{"$f":"記入シート5日目!U47","v":0},{"$f":"記入シート5日目!V47","v":0},{"$f":"記入シート5日目!W47","v":0},{"$f":"記入シート5日目!X47","v":0},{"$f":"記入シート5日目!Y47","v":0},{"$f":"記入シート5日目!Z47","v":0}]
[null,"6日目",{"$f":"記入シート6日目!C47","v":0},{"$f":"記入シート6日目!D47","v":0},{"$f":"記入シート6日目!E47","v":0},{"$f":"記入シート6日目!F47","v":0},{"$f":"記入シート6日目!G47","v":0},{"$f":"記入シート6日目!H47","v":0},{"$f":"記入シート6日目!I47","v":0},{"$f":"記入シート6日目!J47","v":0},{"$f":"記入シート6日目!K47","v":0},{"$f":"記入シート6日目!L47","v":0},{"$f":"記入シート6日目!M47","v":0},{"$f":"記入シート6日目!N47","v":0},{"$f":"記入シート6日目!O47","v":0},{"$f":"記入シート6日目!P47","v":0},{"$f":"記入シート6日目!Q47","v":0},{"$f":"記入シート6日目!R47","v":0},{"$f":"記入シート6日目!S47","v":0},{"$f":"記入シート6日目!T47","v":0},{"$f":"記入シート6日目!U47","v":0},{"$f":"記入シート6日目!V47","v":0},{"$f":"記入シート6日目!W47","v":0},{"$f":"記入シート6日目!X47","v":0},{"$f":"記入シート6日目!Y47","v":0},{"$f":"記入シート6日目!Z47","v":0}]
[null,"7日目",{"$f":"記入シート7日目!C47","v":0},{"$f":"記入シート7日目!D47","v":0},{"$f":"記入シート7日目!E47","v":0},{"$f":"記入シート7日目!F47","v":0},{"$f":"記入シート7日目!G47","v":0},{"$f":"記入シート7日目!H47","v":0},{"$f":"記入シート7日目!I47","v":0},{"$f":"記入シート7日目!J47","v":0},{"$f":"記入シート7日目!K47","v":0},{"$f":"記入シート7日目!L47","v":0},{"$f":"記入シート7日目!M47","v":0},{"$f":"記入シート7日目!N47","v":0},{"$f":"記入シート7日目!O47","v":0},{"$f":"記入シート7日目!P47","v":0},{"$f":"記入シート7日目!Q47","v":0},{"$f":"記入シート7日目!R47","v":0},{"$f":"記入シート7日目!S47","v":0},{"$f":"記入シート7日目!T47","v":0},{"$f":"記入シート7日目!U47","v":0},{"$f":"記入シート7日目!V47","v":0},{"$f":"記入シート7日目!W47","v":0},{"$f":"記入シート7日目!X47","v":0},{"$f":"記入シート7日目!Y47","v":0},{"$f":"記入シート7日目!Z47","v":0}]
[]
[]
[null,"各日の太陽光発電量"]
[null,null,0,1,2,3,4,5,6,7,8,9,10,11,12,13,14,15,16,17,18,19,20,21,22,23]
["電力使用量","1日目",{"$f":"記入シート1日目!C49","v":0},{"$f":"記入シート1日目!D49","v":0},{"$f":"記入シート1日目!E49","v":0},{"$f":"記入シート1日目!F49","v":0},{"$f":"記入シート1日目!G49","v":0},{"$f":"記入シート1日目!H49","v":0},{"$f":"記入シート1日目!I49","v":0},{"$f":"記入シート1日目!J49","v":0},{"$f":"記入シート1日目!K49","v":0},{"$f":"記入シート1日目!L49","v":0},{"$f":"記入シート1日目!M49","v":0},{"$f":"記入シート1日目!N49","v":0},{"$f":"記入シート1日目!O49","v":0},{"$f":"記入シート1日目!P49","v":0},{"$f":"記入シート1日目!Q49","v":0},{"$f":"記入シート1日目!R49","v":0},{"$f":"記入シート1日目!S49","v":0},{"$f":"記入シート1日目!T49","v":0},{"$f":"記入シート1日目!U49","v":0},{"$f":"記入シート1日目!V49","v":0},{"$f":"記入シート1日目!W49","v":0},{"$f":"記入シート1日目!X49","v":0},{"$f":"記入シート1日目!Y49","v":0},{"$f":"記入シート1日目!Z49","v":0}]
[null,"2日目",{"$f":"記入シート2日目!C49","v":0},{"$f":"記入シート2日目!D49","v":0},{"$f":"記入シート2日目!E49","v":0},{"$f":"記入シート2日目!F49","v":0},{"$f":"記入シート2日目!G49","v":0},{"$f":"記入シート2日目!H49","v":0},{"$f":"記入シート2日目!I49","v":0},{"$f":"記入シート2日目!J49","v":0},{"$f":"記入シート2日目!K49","v":0},{"$f":"記入シート2日目!L49","v":0},{"$f":"記入シート2日目!M49","v":0},{"$f":"記入シート2日目!N49","v":0},{"$f":"記入シート2日目!O49","v":0},{"$f":"記入シート2日目!P49","v":0},{"$f":"記入シート2日目!Q49","v":0},{"$f":"記入シート2日目!R49","v":0},{"$f":"記入シート2日目!S49","v":0},{"$f":"記入シート2日目!T49","v":0},{"$f":"記入シート2日目!U49","v":0},{"$f":"記入シート2日目!V49","v":0},{"$f":"記入シート2日目!W49","v":0},{"$f":"記入シート2日目!X49","v":0},{"$f":"記入シート2日目!Y49","v":0},{"$f":"記入シート2日目!Z49","v":0}]
[null,"3日目",{"$f":"記入シート3日目!C49","v":0},{"$f":"記入シート3日目!D49","v":0},{"$f":"記入シート3日目!E49","v":0},{"$f":"記入シート3日目!F49","v":0},{"$f":"記入シート3日目!G49","v":0},{"$f":"記入シート3日目!H49","v":0},{"$f":"記入シート3日目!I49","v":0},{"$f":"記入シート3日目!J49","v":0},{"$f":"記入シート3日目!K49","v":0},{"$f":"記入シート3日目!L49","v":0},{"$f":"記入シート3日目!M49","v":0},{"$f":"記入シート3日目!N49","v":0},{"$f":"記入シート3日目!O49","v":0},{"$f":"記入シート3日目!P49","v":0},{"$f":"記入シート3日目!Q49","v":0},{"$f":"記入シート3日目!R49","v":0},{"$f":"記入シート3日目!S49","v":0},{"$f":"記入シート3日目!T49","v":0},{"$f":"記入シート3日目!U49","v":0},{"$f":"記入シート3日目!V49","v":0},{"$f":"記入シート3日目!W49","v":0},{"$f":"記入シート3日目!X49","v":0},{"$f":"記入シート3日目!Y49","v":0},{"$f":"記入シート3日目!Z49","v":0}]
[null,"4日目",{"$f":"記入シート4日目!C49","v":0},{"$f":"記入シート4日目!D49","v":0},{"$f":"記入シート4日目!E49","v":0},{"$f":"記入シート4日目!F49","v":0},{"$f":"記入シート4日目!G49","v":0},{"$f":"記入シート4日目!H49","v":0},{"$f":"記入シート4日目!I49","v":0},{"$f":"記入シート4日目!J49","v":0},{"$f":"記入シート4日目!K49","v":0},{"$f":"記入シート4日目!L49","v":0},{"$f":"記入シート4日目!M49","v":0},{"$f":"記入シート4日目!N49","v":0},{"$f":"記入シート4日目!O49","v":0},{"$f":"記入シート4日目!P49","v":0},{"$f":"記入シート4日目!Q49","v":0},{"$f":"記入シート4日目!R49","v":0},{"$f":"記入シート4日目!S49","v":0},{"$f":"記入シート4日目!T49","v":0},{"$f":"記入シート4日目!U49","v":0},{"$f":"記入シート4日目!V49","v":0},{"$f":"記入シート4日目!W49","v":0},{"$f":"記入シート4日目!X49","v":0},{"$f":"記入シート4日目!Y49","v":0},{"$f":"記入シート4日目!Z49","v":0}]
[null,"5日目",{"$f":"記入シート5日目!C49","v":0},{"$f":"記入シート5日目!D49","v":0},{"$f":"記入シート5日目!E49","v":0},{"$f":"記入シート5日目!F49","v":0},{"$f":"記入シート5日目!G49","v":0},{"$f":"記入シート5日目!H49","v":0},{"$f":"記入シート5日目!I49","v":0},{"$f":"記入シート5日目!J49","v":0},{"$f":"記入シート5日目!K49","v":0},{"$f":"記入シート5日目!L49","v":0},{"$f":"記入シート5日目!M49","v":0},{"$f":"記入シート5日目!N49","v":0},{"$f":"記入シート5日目!O49","v":0},{"$f":"記入シート5日目!P49","v":0},{"$f":"記入シート5日目!Q49","v":0},{"$f":"記入シート5日目!R49","v":0},{"$f":"記入シート5日目!S49","v":0},{"$f":"記入シート5日目!T49","v":0},{"$f":"記入シート5日目!U49","v":0},{"$f":"記入シート5日目!V49","v":0},{"$f":"記入シート5日目!W49","v":0},{"$f":"記入シート5日目!X49","v":0},{"$f":"記入シート5日目!Y49","v":0},{"$f":"記入シート5日目!Z49","v":0}]
[null,"6日目",{"$f":"記入シート6日目!C49","v":0},{"$f":"記入シート6日目!D49","v":0},{"$f":"記入シート6日目!E49","v":0},{"$f":"記入シート6日目!F49","v":0},{"$f":"記入シート6日目!G49","v":0},{"$f":"記入シート6日目!H49","v":0},{"$f":"記入シート6日目!I49","v":0},{"$f":"記入シート6日目!J49","v":0},{"$f":"記入シート6日目!K49","v":0},{"$f":"記入シート6日目!L49","v":0},{"$f":"記入シート6日目!M49","v":0},{"$f":"記入シート6日目!N49","v":0},{"$f":"記入シート6日目!O49","v":0},{"$f":"記入シート6日目!P49","v":0},{"$f":"記入シート6日目!Q49","v":0},{"$f":"記入シート6日目!R49","v":0},{"$f":"記入シート6日目!S49","v":0},{"$f":"記入シート6日目!T49","v":0},{"$f":"記入シート6日目!U49","v":0},{"$f":"記入シート6日目!V49","v":0},{"$f":"記入シート6日目!W49","v":0},{"$f":"記入シート6日目!X49","v":0},{"$f":"記入シート6日目!Y49","v":0},{"$f":"記入シート6日目!Z49","v":0}]
[null,"7日目",{"$f":"記入シート7日目!C49","v":0},{"$f":"記入シート7日目!D49","v":0},{"$f":"記入シート7日目!E49","v":0},{"$f":"記入シート7日目!F49","v":0},{"$f":"記入シート7日目!G49","v":0},{"$f":"記入シート7日目!H49","v":0},{"$f":"記入シート7日目!I49","v":0},{"$f":"記入シート7日目!J49","v":0},{"$f":"記入シート7日目!K49","v":0},{"$f":"記入シート7日目!L49","v":0},{"$f":"記入シート7日目!M49","v":0},{"$f":"記入シート7日目!N49","v":0},{"$f":"記入シート7日目!O49","v":0},{"$f":"記入シート7日目!P49","v":0},{"$f":"記入シート7日目!Q49","v":0},{"$f":"記入シート7日目!R49","v":0},{"$f":"記入シート7日目!S49","v":0},{"$f":"記入シート7日目!T49","v":0},{"$f":"記入シート7日目!U49","v":0},{"$f":"記入シート7日目!V49","v":0},{"$f":"記入シート7日目!W49","v":0},{"$f":"記入シート7日目!X49","v":0},{"$f":"記入シート7日目!Y49","v":0},{"$f":"記入シート7日目!Z49","v":0}]